Publisher Label,Publisher URI,"Supplier ID","Supplier","Invoice No.","Amount £","Purpose","Transaction Number","Payment Date","Organisational Unit","Cost Centre(T)","Internal Category Number"
"Wolverhampton City Council","http://opendatacommunities.org/id/metropolitan-district-council/wolverhampton","708251","Total Gas & Power Limited","172983376","33.60","Gas","190488795","25/07/2018","Corporate Asset Management","Central Utilities to Recharge","R2101"
"Wolverhampton City Council","http://opendatacommunities.org/id/metropolitan-district-council/wolverhampton","708251","Total Gas & Power Limited","172983123","135.91","Gas","190488821","25/07/2018","Schools","Loxdale Primary School","R2101"
"Wolverhampton City Council","http://opendatacommunities.org/id/metropolitan-district-council/wolverhampton","708251","Total Gas & Power Limited","172983222","317.16","Gas","190488811","25/07/2018","Corporate Asset Management","Central Utilities to Recharge","R2101"
"Wolverhampton City Council","http://opendatacommunities.org/id/metropolitan-district-council/wolverhampton","708251","Total Gas & Power Limited","172983178","398.27","Gas","190488816","25/07/2018","Schools","St Andrews Church of England Primary School","R2101"
"Wolverhampton City Council","http://opendatacommunities.org/id/metropolitan-district-council/wolverhampton","708251","Total Gas & Power Limited","167754086","1,799.87","Gas","190488840","25/07/2018","Facilities Management","Management of Vacant Properties","R2101"
"Wolverhampton City Council","http://opendatacommunities.org/id/metropolitan-district-council/wolverhampton","708251","Total Gas & Power Limited","172983024","352.90","Gas","190488831","25/07/2018","Corporate Asset Management","Central Utilities to Recharge","R2101"
"Wolverhampton City Council","http://opendatacommunities.org/id/metropolitan-district-council/wolverhampton","708251","Total Gas & Power Limited","168003379","1,297.25","Gas","190488843","25/07/2018","Corporate Asset Management","Central Utilities to Recharge","R2101"
"Wolverhampton City Council","http://opendatacommunities.org/id/metropolitan-district-council/wolverhampton","708251","Total Gas & Power Limited","168003368","508.90","Gas","190488842","25/07/2018","Corporate Asset Management","Central Utilities to Recharge","R2101"
"Wolverhampton City Council","http://opendatacommunities.org/id/metropolitan-district-council/wolverhampton","708251","Total Gas & Power Limited","170089089","84.31","Gas","190488855","25/07/2018","Schools","Hill Avenue Primary School","R2101"
"Wolverhampton City Council","http://opendatacommunities.org/id/metropolitan-district-council/wolverhampton","708251","Total Gas & Power Limited","170089815","323.59","Gas","190488857","25/07/2018","Corporate Asset Management","Central Utilities to Recharge","R2101"
"Wolverhampton City Council","http://opendatacommunities.org/id/metropolitan-district-council/wolverhampton","708251","Total Gas & Power Limited","162627789C","-465.85","Gas","190488844","25/07/2018","Schools","Penn Hall Special School","R2101"
"Wolverhampton City Council","http://opendatacommunities.org/id/metropolitan-district-council/wolverhampton","708251","Total Gas & Power Limited","161354286","932.33","Gas","190488851","25/07/2018","Corporate Asset Management","Central Utilities to Recharge","R2101"
"Wolverhampton City Council","http://opendatacommunities.org/id/metropolitan-district-council/wolverhampton","708251","Total Gas & Power Limited","172998336","122.70","Gas","190488621","25/07/2018","Corporate Asset Management","Central Utilities to Recharge","R2101"
"Wolverhampton City Council","http://opendatacommunities.org/id/metropolitan-district-council/wolverhampton","708251","Total Gas & Power Limited","172998270","227.23","Gas","190488631","25/07/2018","Schools","Eastfield Nursery","R2101"
"Wolverhampton City Council","http://opendatacommunities.org/id/metropolitan-district-council/wolverhampton","708251","Total Gas & Power Limited","172998260","67.17","Gas","190488632","25/07/2018","Schools","Uplands Junior School","R2101"
"Wolverhampton City Council","http://opendatacommunities.org/id/metropolitan-district-council/wolverhampton","708251","Total Gas & Power Limited","172998226","33.60","Gas","190488636","25/07/2018","Schools","Bushbury Nursery","R2101"
"Wolverhampton City Council","http://opendatacommunities.org/id/metropolitan-district-council/wolverhampton","708251","Total Gas & Power Limited","152496239C","-580.34","Gas","190488609","25/07/2018","Facilities Management","Management of Vacant Properties","R2101"
"Wolverhampton City Council","http://opendatacommunities.org/id/metropolitan-district-council/wolverhampton","708251","Total Gas & Power Limited","161275196C","-1,316.42","Gas","190488614","25/07/2018","Facilities Management","Management of Vacant Properties","R2101"
"Wolverhampton City Council","http://opendatacommunities.org/id/metropolitan-district-council/wolverhampton","708251","Total Gas & Power Limited","159846505C","-915.40","Gas","190488613","25/07/2018","Facilities Management","Management of Vacant Properties","R2101"
"Wolverhampton City Council","http://opendatacommunities.org/id/metropolitan-district-council/wolverhampton","708251","Total Gas & Power Limited","162613687C","-1,570.91","Gas","190488615","25/07/2018","Facilities Management","Management of Vacant Properties","R2101"
"Wolverhampton City Council","http://opendatacommunities.org/id/metropolitan-district-council/wolverhampton","708251","Total Gas & Power Limited","172998314","152.20","Gas","190488623","25/07/2018","Corporate Asset Management","Central Utilities to Recharge","R2101"
"Wolverhampton City Council","http://opendatacommunities.org/id/metropolitan-district-council/wolverhampton","708251","Total Gas & Power Limited","137520982C","-607.28","Gas","190488600","25/07/2018","Facilities Management","Management of Vacant Properties","R2101"
"Wolverhampton City Council","http://opendatacommunities.org/id/metropolitan-district-council/wolverhampton","708251","Total Gas & Power Limited","171334091/18","10,991.15","Electricity","130221722","06/07/2018","Schools","The King�s Church of England School","R2100"
"Wolverhampton City Council","http://opendatacommunities.org/id/metropolitan-district-council/wolverhampton","708251","Total Gas & Power Limited","172997380","33.60","Gas","190488725","25/07/2018","Facilities Management","Management of Vacant Properties","R2101"
"Wolverhampton City Council","http://opendatacommunities.org/id/metropolitan-district-council/wolverhampton","708251","Total Gas & Power Limited","172983520","33.60","Gas","190488778","25/07/2018","Facilities Management","Management of Vacant Properties","R2101"
"Wolverhampton City Council","http://opendatacommunities.org/id/metropolitan-district-council/wolverhampton","708251","Total Gas & Power Limited","172983090","190.37","Gas","190488824","25/07/2018","Schools","Westacre Infant School","R2101"
"Wolverhampton City Council","http://opendatacommunities.org/id/metropolitan-district-council/wolverhampton","708251","Total Gas & Power Limited","172983101","182.70","Gas","190488823","25/07/2018","Schools","Uplands Junior School","R2101"
"Wolverhampton City Council","http://opendatacommunities.org/id/metropolitan-district-council/wolverhampton","708251","Total Gas & Power Limited","172982881","159.70","Gas","190488629","25/07/2018","Corporate Asset Management","Central Utilities to Recharge","R2101"
"Wolverhampton City Council","http://opendatacommunities.org/id/metropolitan-district-council/wolverhampton","708251","Total Gas & Power Limited","172998347","396.74","Gas","190488622","25/07/2018","Corporate Asset Management","Central Utilities to Recharge","R2101"
"Wolverhampton City Council","http://opendatacommunities.org/id/metropolitan-district-council/wolverhampton","708251","Total Gas & Power Limited","168491163","1,894.82","Gas","190488596","25/07/2018","Corporate Asset Management","Central Utilities to Recharge","R2101"
"Wolverhampton City Council","http://opendatacommunities.org/id/metropolitan-district-council/wolverhampton","708251","Total Gas & Power Limited","172998127","165.58","Gas","190488646","25/07/2018","Schools","St Andrews Church of England Primary School","R2101"
"Wolverhampton City Council","http://opendatacommunities.org/id/metropolitan-district-council/wolverhampton","708251","Total Gas & Power Limited","172997632","35.04","Gas","190488695","25/07/2018","Corporate Asset Management","Central Utilities to Recharge","R2101"
"Wolverhampton City Council","http://opendatacommunities.org/id/metropolitan-district-council/wolverhampton","708251","Total Gas & Power Limited","172997610","136.57","Gas","190488700","25/07/2018","Corporate Asset Management","Central Utilities to Recharge","R2101"
"Wolverhampton City Council","http://opendatacommunities.org/id/metropolitan-district-council/wolverhampton","708251","Total Gas & Power Limited","172982936","209.28","Gas","190488703","25/07/2018","Schools","St Luke�s Church of England Aided Primary School","R2101"
"Wolverhampton City Council","http://opendatacommunities.org/id/metropolitan-district-council/wolverhampton","708251","Total Gas & Power Limited","172997555","39.54","Gas","190488708","25/07/2018","Schools","Bilston Church of England Primary School","R2101"
"Wolverhampton City Council","http://opendatacommunities.org/id/metropolitan-district-council/wolverhampton","708251","Total Gas & Power Limited","172997467","39.21","Gas","190488717","25/07/2018","Corporate Asset Management","Central Utilities to Recharge","R2101"
"Wolverhampton City Council","http://opendatacommunities.org/id/metropolitan-district-council/wolverhampton","708251","Total Gas & Power Limited","172997335","47.10","Gas","190488730","25/07/2018","Corporate Asset Management","Central Utilities to Recharge","R2101"
"Wolverhampton City Council","http://opendatacommunities.org/id/metropolitan-district-council/wolverhampton","708251","Total Gas & Power Limited","172997445","47.83","Gas","190488719","25/07/2018","Corporate Asset Management","Central Utilities to Recharge","R2101"
"Wolverhampton City Council","http://opendatacommunities.org/id/metropolitan-district-council/wolverhampton","708251","Total Gas & Power Limited","172997390","49.36","Gas","190488724","25/07/2018","Corporate Asset Management","Central Utilities to Recharge","R2101"
"Wolverhampton City Council","http://opendatacommunities.org/id/metropolitan-district-council/wolverhampton","708251","Total Gas & Power Limited","172997357","42.26","Gas","190488728","25/07/2018","Corporate Asset Management","Central Utilities to Recharge","R2101"
"Wolverhampton City Council","http://opendatacommunities.org/id/metropolitan-district-council/wolverhampton","708251","Total Gas & Power Limited","172997379","50.38","Gas","190488726","25/07/2018","Schools","Phoenix Nursery","R2101"
"Wolverhampton City Council","http://opendatacommunities.org/id/metropolitan-district-council/wolverhampton","708251","Total Gas & Power Limited","172997302","46.30","Gas","190488733","25/07/2018","Corporate Asset Management","Central Utilities to Recharge","R2101"
"Wolverhampton City Council","http://opendatacommunities.org/id/metropolitan-district-council/wolverhampton","708251","Total Gas & Power Limited","172997247","100.47","Gas","190488739","25/07/2018","Housing Revenue Account","Amounts to be Settled with Wolverhampton Homes","R2101"
"Wolverhampton City Council","http://opendatacommunities.org/id/metropolitan-district-council/wolverhampton","708251","Total Gas & Power Limited","172983651","84.09","Gas","190488765","25/07/2018","Corporate Asset Management","Central Utilities to Recharge","R2101"
"Wolverhampton City Council","http://opendatacommunities.org/id/metropolitan-district-council/wolverhampton","708251","Total Gas & Power Limited","172983607","184.23","Gas","190488770","25/07/2018","Schools","St Patrick�s Catholic Primary School","R2101"
"Wolverhampton City Council","http://opendatacommunities.org/id/metropolitan-district-council/wolverhampton","708251","Total Gas & Power Limited","172983563","228.76","Gas","190488774","25/07/2018","Corporate Asset Management","Central Utilities to Recharge","R2101"
"Wolverhampton City Council","http://opendatacommunities.org/id/metropolitan-district-council/wolverhampton","708251","Total Gas & Power Limited","172997104","105.33","Gas","190488753","25/07/2018","Corporate Asset Management","Central Utilities to Recharge","R2101"
"Wolverhampton City Council","http://opendatacommunities.org/id/metropolitan-district-council/wolverhampton","708251","Total Gas & Power Limited","172983464","135.91","Gas","190488784","25/07/2018","Corporate Asset Management","Central Utilities to Recharge","R2101"
"Wolverhampton City Council","http://opendatacommunities.org/id/metropolitan-district-council/wolverhampton","708251","Total Gas & Power Limited","172983706","148.33","Gas","190488760","25/07/2018","Corporate Asset Management","Central Utilities to Recharge","R2101"
"Wolverhampton City Council","http://opendatacommunities.org/id/metropolitan-district-council/wolverhampton","708251","Total Gas & Power Limited","172983728","257.81","Gas","190488758","25/07/2018","Schools","Rakegate Primary School","R2101"
"Wolverhampton City Council","http://opendatacommunities.org/id/metropolitan-district-council/wolverhampton","708251","Total Gas & Power Limited","172997159","46.30","Gas","190488748","25/07/2018","Corporate Asset Management","Central Utilities to Recharge","R2101"
"Wolverhampton City Council","http://opendatacommunities.org/id/metropolitan-district-council/wolverhampton","708251","Total Gas & Power Limited","172997115","502.13","Gas","190488752","25/07/2018","Corporate Asset Management","Central Utilities to Recharge","R2101"
"Wolverhampton City Council","http://opendatacommunities.org/id/metropolitan-district-council/wolverhampton","708251","Total Gas & Power Limited","172983387","33.60","Gas","190488794","25/07/2018","Corporate Asset Management","Central Utilities to Recharge","R2101"
"Wolverhampton City Council","http://opendatacommunities.org/id/metropolitan-district-council/wolverhampton","708251","Total Gas & Power Limited","172983300","135.40","Gas","190488802","25/07/2018","Schools","St Anthony�s Catholic Primary School","R2101"
"Wolverhampton City Council","http://opendatacommunities.org/id/metropolitan-district-council/wolverhampton","708251","Total Gas & Power Limited","172983343","144.05","Gas","190488798","25/07/2018","Corporate Asset Management","Central Utilities to Recharge","R2101"
"Wolverhampton City Council","http://opendatacommunities.org/id/metropolitan-district-council/wolverhampton","708251","Total Gas & Power Limited","172983277","950.76","Gas","190488806","25/07/2018","Schools","Warstones Primary School","R2101"
"Wolverhampton City Council","http://opendatacommunities.org/id/metropolitan-district-council/wolverhampton","708251","Total Gas & Power Limited","172983354","283.04","Gas","190488797","25/07/2018","Corporate Asset Management","Central Utilities to Recharge","R2101"
"Wolverhampton City Council","http://opendatacommunities.org/id/metropolitan-district-council/wolverhampton","708251","Total Gas & Power Limited","172983068","511.46","Gas","190488827","25/07/2018","Corporate Asset Management","Central Utilities to Recharge","R2101"
"Wolverhampton City Council","http://opendatacommunities.org/id/metropolitan-district-council/wolverhampton","708251","Total Gas & Power Limited","172983134","4,242.66","Gas","190488820","25/07/2018","Corporate Asset Management","Central Utilities to Recharge","R2101"
"Wolverhampton City Council","http://opendatacommunities.org/id/metropolitan-district-council/wolverhampton","708251","Total Gas & Power Limited","172983244","3,417.05","Gas","190488809","25/07/2018","Corporate Asset Management","Central Utilities to Recharge","R2101"
"Wolverhampton City Council","http://opendatacommunities.org/id/metropolitan-district-council/wolverhampton","708251","Total Gas & Power Limited","172983035","679.69","Gas","190488830","25/07/2018","Schools","Penn Hall Special School","R2101"
"Wolverhampton City Council","http://opendatacommunities.org/id/metropolitan-district-council/wolverhampton","708251","Total Gas & Power Limited","172982969","200.60","Gas","190488837","25/07/2018","Schools","Springvale Primary School","R2101"
"Wolverhampton City Council","http://opendatacommunities.org/id/metropolitan-district-council/wolverhampton","708251","Total Gas & Power Limited","172983013","90.75","Gas","190488832","25/07/2018","Corporate Asset Management","Central Utilities to Recharge","R2101"
"Wolverhampton City Council","http://opendatacommunities.org/id/metropolitan-district-council/wolverhampton","708251","Total Gas & Power Limited","172983080","233.33","Gas","190488825","25/07/2018","Schools","Castlecroft Primary School","R2101"
"Wolverhampton City Council","http://opendatacommunities.org/id/metropolitan-district-council/wolverhampton","708251","Total Gas & Power Limited","170088869","56.52","Gas","190488854","25/07/2018","Corporate Asset Management","Central Utilities to Recharge","R2101"
"Wolverhampton City Council","http://opendatacommunities.org/id/metropolitan-district-council/wolverhampton","708251","Total Gas & Power Limited","162627415C","-936.71","Gas","190488846","25/07/2018","Corporate Asset Management","Central Utilities to Recharge","R2101"
"Wolverhampton City Council","http://opendatacommunities.org/id/metropolitan-district-council/wolverhampton","708251","Total Gas & Power Limited","162627261","1,155.11","Gas","190488849","25/07/2018","Corporate Asset Management","Central Utilities to Recharge","R2101"
"Wolverhampton City Council","http://opendatacommunities.org/id/metropolitan-district-council/wolverhampton","708251","Total Gas & Power Limited","170144144","320.93","Gas","190488862","25/07/2018","Corporate Asset Management","Central Utilities to Recharge","R2101"
"Wolverhampton City Council","http://opendatacommunities.org/id/metropolitan-district-council/wolverhampton","708251","Total Gas & Power Limited","172998369","53.57","Gas","190488625","25/07/2018","Schools","St Luke�s Church of England Aided Primary School","R2101"
"Wolverhampton City Council","http://opendatacommunities.org/id/metropolitan-district-council/wolverhampton","708251","Total Gas & Power Limited","172998204","127.86","Gas","190488638","25/07/2018","Corporate Asset Management","Central Utilities to Recharge","R2101"
"Wolverhampton City Council","http://opendatacommunities.org/id/metropolitan-district-council/wolverhampton","708251","Total Gas & Power Limited","154069041C","-510.63","Gas","190488610","25/07/2018","Facilities Management","Management of Vacant Properties","R2101"
"Wolverhampton City Council","http://opendatacommunities.org/id/metropolitan-district-council/wolverhampton","708251","Total Gas & Power Limited","157424195C","-664.18","Gas","190488612","25/07/2018","Facilities Management","Management of Vacant Properties","R2101"
"Wolverhampton City Council","http://opendatacommunities.org/id/metropolitan-district-council/wolverhampton","708251","Total Gas & Power Limited","166124546C","-1,577.97","Gas","190488617","25/07/2018","Facilities Management","Management of Vacant Properties","R2101"
"Wolverhampton City Council","http://opendatacommunities.org/id/metropolitan-district-council/wolverhampton","708251","Total Gas & Power Limited","172998325","33.60","Gas","190488620","25/07/2018","Corporate Asset Management","Central Utilities to Recharge","R2101"
"Wolverhampton City Council","http://opendatacommunities.org/id/metropolitan-district-council/wolverhampton","708251","Total Gas & Power Limited","168491152","458.19","Gas","190488595","25/07/2018","Corporate Asset Management","Central Utilities to Recharge","R2101"
"Wolverhampton City Council","http://opendatacommunities.org/id/metropolitan-district-council/wolverhampton","708251","Total Gas & Power Limited","172998182","185.57","Gas","190488640","25/07/2018","Corporate Asset Management","Central Utilities to Recharge","R2101"
"Wolverhampton City Council","http://opendatacommunities.org/id/metropolitan-district-council/wolverhampton","708251","Total Gas & Power Limited","172998150","66.17","Gas","190488643","25/07/2018","Schools","Claregate Primary School","R2101"
"Wolverhampton City Council","http://opendatacommunities.org/id/metropolitan-district-council/wolverhampton","708251","Total Gas & Power Limited","143646365C","-1,737.81","Gas","190488604","25/07/2018","Facilities Management","Management of Vacant Properties","R2101"
"Wolverhampton City Council","http://opendatacommunities.org/id/metropolitan-district-council/wolverhampton","708251","Total Gas & Power Limited","172998116","231.53","Gas","190488647","25/07/2018","Schools","St Andrews Church of England Primary School","R2101"
"Wolverhampton City Council","http://opendatacommunities.org/id/metropolitan-district-council/wolverhampton","708251","Total Gas & Power Limited","172998193","46.30","Gas","190488639","25/07/2018","Corporate Asset Management","Central Utilities to Recharge","R2101"
"Wolverhampton City Council","http://opendatacommunities.org/id/metropolitan-district-council/wolverhampton","708251","Total Gas & Power Limited","142583150C","-1,459.87","Gas","190488603","25/07/2018","Facilities Management","Management of Vacant Properties","R2101"
"Wolverhampton City Council","http://opendatacommunities.org/id/metropolitan-district-council/wolverhampton","708251","Total Gas & Power Limited","172997984","63.94","Gas","190488659","25/07/2018","Schools","Long Knowle Primary School","R2101"
"Wolverhampton City Council","http://opendatacommunities.org/id/metropolitan-district-council/wolverhampton","708251","Total Gas & Power Limited","172997951","216.91","Gas","190488662","25/07/2018","Schools","Woodthorne Primary School","R2101"
"Wolverhampton City Council","http://opendatacommunities.org/id/metropolitan-district-council/wolverhampton","708251","Total Gas & Power Limited","172998017","66.46","Gas","190488656","25/07/2018","Schools","Wodensfield Primary School","R2101"
"Wolverhampton City Council","http://opendatacommunities.org/id/metropolitan-district-council/wolverhampton","708251","Total Gas & Power Limited","172997896","70.59","Gas","190488667","25/07/2018","Schools","Merridale Primary School","R2101"
"Wolverhampton City Council","http://opendatacommunities.org/id/metropolitan-district-council/wolverhampton","708251","Total Gas & Power Limited","172997973","68.72","Gas","190488660","25/07/2018","Corporate Asset Management","Central Utilities to Recharge","R2101"
"Wolverhampton City Council","http://opendatacommunities.org/id/metropolitan-district-council/wolverhampton","708251","Total Gas & Power Limited","172997863","58.90","Gas","190488670","25/07/2018","Schools","Whitgreave Infant School","R2101"
"Wolverhampton City Council","http://opendatacommunities.org/id/metropolitan-district-council/wolverhampton","708251","Total Gas & Power Limited","172997643","828.72","Gas","190488694","25/07/2018","Corporate Asset Management","Central Utilities to Recharge","R2101"
"Wolverhampton City Council","http://opendatacommunities.org/id/metropolitan-district-council/wolverhampton","708251","Total Gas & Power Limited","172997797","33.60","Gas","190488678","25/07/2018","Corporate Asset Management","Central Utilities to Recharge","R2101"
"Wolverhampton City Council","http://opendatacommunities.org/id/metropolitan-district-council/wolverhampton","708251","Total Gas & Power Limited","172997731","44.40","Gas","190488684","25/07/2018","Schools","Wilkinson Primary School","R2101"
"Wolverhampton City Council","http://opendatacommunities.org/id/metropolitan-district-council/wolverhampton","708298","Travel Class Limited","IN-027046","2,950.00","Education trips, Holidays, Outings & Activities","130223654","25/07/2018","Headstart","Headstart - Young People Engagement","R4970"
"Wolverhampton City Council","http://opendatacommunities.org/id/metropolitan-district-council/wolverhampton","708306","Treka Bus Limited","UMT0008847","54.08","Services - Professional Fees","190483216","11/07/2018","Fleet Services","Fleet Management","R4400"
"Wolverhampton City Council","http://opendatacommunities.org/id/metropolitan-district-council/wolverhampton","708306","Treka Bus Limited","UMT0008847","61.60","Services - Professional Fees","190483216","11/07/2018","Fleet Services","Fleet Management","R4400"
"Wolverhampton City Council","http://opendatacommunities.org/id/metropolitan-district-council/wolverhampton","708306","Treka Bus Limited","SI009080","347.33","Equipment - Purchase","190490268","27/07/2018","Fleet Services","Fleet Management","R4000"
"Wolverhampton City Council","http://opendatacommunities.org/id/metropolitan-district-council/wolverhampton","708306","Treka Bus Limited","UMT0008846","72.10","Services - Professional Fees","190483215","11/07/2018","Fleet Services","Fleet Management","R4400"
"Wolverhampton City Council","http://opendatacommunities.org/id/metropolitan-district-council/wolverhampton","708306","Treka Bus Limited","UMT0008846","61.60","Services - Professional Fees","190483215","11/07/2018","Fleet Services","Fleet Management","R4400"
"Wolverhampton City Council","http://opendatacommunities.org/id/metropolitan-district-council/wolverhampton","708306","Treka Bus Limited","UMT0008846","6.39","Services - Professional Fees","190483215","11/07/2018","Fleet Services","Fleet Management","R4400"
"Wolverhampton City Council","http://opendatacommunities.org/id/metropolitan-district-council/wolverhampton","708320","Trinity Ce Primary School Fund","T42 Summer 18 Inst 1&2 Rising 3�s","7,781.40","TPP - Private Nursery Education Funding","190489834","25/07/2018","Early Years","Early Years Entitlement Funding for Disadvantaged 2 Year Olds","R5035"
"Wolverhampton City Council","http://opendatacommunities.org/id/metropolitan-district-council/wolverhampton","708320","Trinity Ce Primary School Fund","EYPP Summer 2018","3,816.00","TPP - Private Nursery Education Funding","190489844","25/07/2018","Early Years","Early Years Pupil Premium","R5035"
"Wolverhampton City Council","http://opendatacommunities.org/id/metropolitan-district-council/wolverhampton","708339","Trowers & Hamlins Llp","2734219","18,566.56","Services - Professional Fees","130223205","25/07/2018","City Development","Strategic Disposals","R4400"
"Wolverhampton City Council","http://opendatacommunities.org/id/metropolitan-district-council/wolverhampton","708339","Trowers & Hamlins Llp","2734219","3.00","Services - Professional Fees","130223205","25/07/2018","City Development","Strategic Disposals","R4400"
"Wolverhampton City Council","http://opendatacommunities.org/id/metropolitan-district-council/wolverhampton","708339","Trowers & Hamlins Llp","2725756","2,650.00","Services - Professional Fees","130222363","18/07/2018","Housing Revenue Account","Bushbury Hill EMB","R4400"
"Wolverhampton City Council","http://opendatacommunities.org/id/metropolitan-district-council/wolverhampton","708339","Trowers & Hamlins Llp","2721226","3,577.41","Services - Professional Fees","130221498","06/07/2018","School Planning & Resources","PFI Scheme - Heath Park & St Matthias","R4400"
"Wolverhampton City Council","http://opendatacommunities.org/id/metropolitan-district-council/wolverhampton","708339","Trowers & Hamlins Llp","2707531","13,671.90","Services - Professional Fees","130221497","06/07/2018","City Development","Strategic Disposals","R4400"
"Wolverhampton City Council","http://opendatacommunities.org/id/metropolitan-district-council/wolverhampton","708339","Trowers & Hamlins Llp","2707531","8.00","Services - Professional Fees","130221497","06/07/2018","City Development","Strategic Disposals","R4400"
"Wolverhampton City Council","http://opendatacommunities.org/id/metropolitan-district-council/wolverhampton","708356","Tudor Environmental","224801","43.65","Materials","130222555","25/07/2018","Bereavement Services","Bereavement services - Grounds maintenance","R4007"
"Wolverhampton City Council","http://opendatacommunities.org/id/metropolitan-district-council/wolverhampton","708356","Tudor Environmental","222916","22.30","Equipment - Purchase","130220576","11/07/2018","Environmental Maintenance","Parks - Ranger Service","R4000"
"Wolverhampton City Council","http://opendatacommunities.org/id/metropolitan-district-council/wolverhampton","708356","Tudor Environmental","222916","30.26","Equipment - Purchase","130220576","11/07/2018","Environmental Maintenance","Parks - Ranger Service","R4000"
"Wolverhampton City Council","http://opendatacommunities.org/id/metropolitan-district-council/wolverhampton","708356","Tudor Environmental","224732","218.25","Materials","130222554","25/07/2018","Bereavement Services","Bereavement services - Grounds maintenance","R4007"
"Wolverhampton City Council","http://opendatacommunities.org/id/metropolitan-district-council/wolverhampton","708356","Tudor Environmental","224125","36.90","Equipment - Purchase","130221869","11/07/2018","Bereavement Services","Bereavement services - Grounds maintenance","R4000"
"Wolverhampton City Council","http://opendatacommunities.org/id/metropolitan-district-council/wolverhampton","708356","Tudor Environmental","224125","59.00","Equipment - Hire","130221869","11/07/2018","Bereavement Services","Bereavement services - Grounds maintenance","R4001"
"Wolverhampton City Council","http://opendatacommunities.org/id/metropolitan-district-council/wolverhampton","708357","Tudor Medical Centre","BW   YR 2/2/58","58.50","Medical Fees","190487306","23/07/2018","Child Protection","Childrens with Disabilities Team","R1400"
"Wolverhampton City Council","http://opendatacommunities.org/id/metropolitan-district-council/wolverhampton","708357","Tudor Medical Centre","FOS4106","78.50","Services - Professional Fees","190481155","06/07/2018","Looked After Children","Fostering Team & Allowances","R4400"
"Wolverhampton City Council","http://opendatacommunities.org/id/metropolitan-district-council/wolverhampton","708358","Tunstall Healthcare (UK) Limited","3IN/10320273","79.80","Equipment - Purchase","130220974","23/07/2018","Independent Living Service","Telecare","R4000"
"Wolverhampton City Council","http://opendatacommunities.org/id/metropolitan-district-council/wolverhampton","708358","Tunstall Healthcare (UK) Limited","3IN/10320273","650.00","Equipment - Purchase","130220974","23/07/2018","Independent Living Service","Telecare","R4000"
"Wolverhampton City Council","http://opendatacommunities.org/id/metropolitan-district-council/wolverhampton","708358","Tunstall Healthcare (UK) Limited","3IN/10320273","270.00","Equipment - Purchase","130220974","23/07/2018","Independent Living Service","Telecare","R4000"
"Wolverhampton City Council","http://opendatacommunities.org/id/metropolitan-district-council/wolverhampton","708358","Tunstall Healthcare (UK) Limited","3IN/10320273","290.00","Equipment - Purchase","130220974","23/07/2018","Independent Living Service","Telecare","R4000"
"Wolverhampton City Council","http://opendatacommunities.org/id/metropolitan-district-council/wolverhampton","708358","Tunstall Healthcare (UK) Limited","3IN/10320273","750.00","Equipment - Purchase","130220974","23/07/2018","Independent Living Service","Telecare","R4000"
"Wolverhampton City Council","http://opendatacommunities.org/id/metropolitan-district-council/wolverhampton","708358","Tunstall Healthcare (UK) Limited","3IN/10320273","5,940.00","Equipment - Purchase","130220974","23/07/2018","Independent Living Service","Telecare","R4000"
"Wolverhampton City Council","http://opendatacommunities.org/id/metropolitan-district-council/wolverhampton","708368","Twinkle Stars Day Nursery","TFT Summer 2018 Inst 2","3,528.09","TPP - Private Nursery Education Funding","190489836","25/07/2018","Early Years","Early Years Entitlement Funding for Disadvantaged 2 Year Olds","R5035"
"Wolverhampton City Council","http://opendatacommunities.org/id/metropolitan-district-council/wolverhampton","708368","Twinkle Stars Day Nursery","NEF Summer 2018 INST 2","11,763.71","TPP - Private Nursery Education Funding","190489824","25/07/2018","Early Years","Early Years Universal Entitlement for 3 and 4 Year Olds","R5035"
"Wolverhampton City Council","http://opendatacommunities.org/id/metropolitan-district-council/wolverhampton","708374","Tyddyn Hen Limited","203885","361.74","Provisions (Not for resale)","130221499","25/07/2018","School Planning & Resources","Towers Outdoor Education Centre","R4101"
"Wolverhampton City Council","http://opendatacommunities.org/id/metropolitan-district-council/wolverhampton","708380","U.C.L.E.S.","101058303","50.00","Exam Expenses (Non-Employee)","130221608","06/07/2018","Schools","The King�s Church of England School","R4630"
"Wolverhampton City Council","http://opendatacommunities.org/id/metropolitan-district-council/wolverhampton","708402","Ulverscroft Large Print Books Limited","I621199","219.75","Books","130207137","11/07/2018","Local Economy","Global Budgets","R4309"
"Wolverhampton City Council","http://opendatacommunities.org/id/metropolitan-district-council/wolverhampton","708418","Univar Limited","91533134","335.80","Materials","130219555","11/07/2018","Leisure Services","Central Baths","R4007"
"Wolverhampton City Council","http://opendatacommunities.org/id/metropolitan-district-council/wolverhampton","708418","Univar Limited","91533134","30.00","Materials","130219555","11/07/2018","Leisure Services","Central Baths","R4007"
"Wolverhampton City Council","http://opendatacommunities.org/id/metropolitan-district-council/wolverhampton","708418","Univar Limited","91487184","936.40","Materials","130222918","23/07/2018","Leisure Services","Central Baths","R4007"
"Wolverhampton City Council","http://opendatacommunities.org/id/metropolitan-district-council/wolverhampton","708418","Univar Limited","91534961","277.11","Materials","130219557","11/07/2018","Leisure Services","Bert Williams Leisure Centre","R4007"
"Wolverhampton City Council","http://opendatacommunities.org/id/metropolitan-district-council/wolverhampton","708418","Univar Limited","91533135","67.56","Materials","130219556","11/07/2018","Leisure Services","Central Baths","R4007"
"Wolverhampton City Council","http://opendatacommunities.org/id/metropolitan-district-council/wolverhampton","708436","Univ. Of Wolverhampton (Little Scholars)","EYPP Summer 2018","954.00","TPP - Private Nursery Education Funding","190489844","25/07/2018","Early Years","Early Years Pupil Premium","R5035"
"Wolverhampton City Council","http://opendatacommunities.org/id/metropolitan-district-council/wolverhampton","708436","Univ. Of Wolverhampton (Little Scholars)","NEF Summer 2018 INST 2","12,604.29","TPP - Private Nursery Education Funding","190489824","25/07/2018","Early Years","Early Years Universal Entitlement for 3 and 4 Year Olds","R5035"
"Wolverhampton City Council","http://opendatacommunities.org/id/metropolitan-district-council/wolverhampton","708436","Univ. Of Wolverhampton (Little Scholars)","TFT Summer 2018 Inst 2","5,377.81","TPP - Private Nursery Education Funding","190489836","25/07/2018","Early Years","Early Years Entitlement Funding for Disadvantaged 2 Year Olds","R5035"
"Wolverhampton City Council","http://opendatacommunities.org/id/metropolitan-district-council/wolverhampton","708436","Univ. Of Wolverhampton (Little Scholars)","Enhanced Funding Summer 2018 J Gill","1,000.00","TPP - Private Nursery Education Funding","190482544","11/07/2018","Early Years","Early Years SEN Inclusion Fund","R5035"
"Wolverhampton City Council","http://opendatacommunities.org/id/metropolitan-district-council/wolverhampton","708448","AECOM Infrastructure & Environment UK Ltd","28351348","8,075.93","Construction and Conversion","130219277","11/07/2018","-","GF - Accessing Growth Fund","C1100"
"Wolverhampton City Council","http://opendatacommunities.org/id/metropolitan-district-council/wolverhampton","708448","AECOM Infrastructure & Environment UK Ltd","28351347","3,922.53","Services - Professional Fees","130219276","11/07/2018","Transportation","Strategy & Development","R4400"
"Wolverhampton City Council","http://opendatacommunities.org/id/metropolitan-district-council/wolverhampton","708448","AECOM Infrastructure & Environment UK Ltd","28353161","3,915.00","Services - Professional Fees","130220686","25/07/2018","Transportation","Strategy & Development","R4400"
"Wolverhampton City Council","http://opendatacommunities.org/id/metropolitan-district-council/wolverhampton","708448","AECOM Infrastructure & Environment UK Ltd","28353164","2,681.64","Construction and Conversion","130220687","25/07/2018","-","GF - Accessing Growth Fund","C1100"
"Wolverhampton City Council","http://opendatacommunities.org/id/metropolitan-district-council/wolverhampton","708448","AECOM Infrastructure & Environment UK Ltd","28353102","6,393.04","Services - Professional Fees","130220681","25/07/2018","Street Lighting","St Lighting Ext Recharges","R4400"
"Wolverhampton City Council","http://opendatacommunities.org/id/metropolitan-district-council/wolverhampton","708448","AECOM Infrastructure & Environment UK Ltd","28352100","36,840.00","Construction and Conversion","130219932","18/07/2018","-","GF - Accessing Growth Fund","C1100"
"Wolverhampton City Council","http://opendatacommunities.org/id/metropolitan-district-council/wolverhampton","708448","AECOM Infrastructure & Environment UK Ltd","28350679","1,653.19","External Professional Fees","130218631","04/07/2018","-","Bilston Urban Village","C6002"
"Wolverhampton City Council","http://opendatacommunities.org/id/metropolitan-district-council/wolverhampton","708448","AECOM Infrastructure & Environment UK Ltd","28350867","10,000.00","Construction and Conversion","130218786","04/07/2018","-","GF - LGF Feasibility","C1100"
"Wolverhampton City Council","http://opendatacommunities.org/id/metropolitan-district-council/wolverhampton","708448","AECOM Infrastructure & Environment UK Ltd","28351091","6,419.46","Construction and Conversion","130218953","11/07/2018","-","Integrated Transport","C1100"
"Wolverhampton City Council","http://opendatacommunities.org/id/metropolitan-district-council/wolverhampton","708448","AECOM Infrastructure & Environment UK Ltd","28351595","2,250.00","Services - Professional Fees","130219558","11/07/2018","Highways Maintenance","Patching","R4400"
"Wolverhampton City Council","http://opendatacommunities.org/id/metropolitan-district-council/wolverhampton","708448","AECOM Infrastructure & Environment UK Ltd","28353217","1,693.21","Services - Professional Fees","130220689","25/07/2018","City Development","Bilston Public Open Space (ERDF)","R4400"
"Wolverhampton City Council","http://opendatacommunities.org/id/metropolitan-district-council/wolverhampton","708448","AECOM Infrastructure & Environment UK Ltd","28353047","3,955.26","Construction and Conversion","130220680","25/07/2018","-","Safety Programme","C1100"
"Wolverhampton City Council","http://opendatacommunities.org/id/metropolitan-district-council/wolverhampton","708448","AECOM Infrastructure & Environment UK Ltd","28353344","309.52","Construction and Conversion","130220975","25/07/2018","-","Integrated Transport","C1100"
"Wolverhampton City Council","http://opendatacommunities.org/id/metropolitan-district-council/wolverhampton","708448","AECOM Infrastructure & Environment UK Ltd","28350870","1,721.55","Construction and Conversion","130218788","04/07/2018","-","GF - Accessing Growth Fund","C1100"
"Wolverhampton City Council","http://opendatacommunities.org/id/metropolitan-district-council/wolverhampton","708448","AECOM Infrastructure & Environment UK Ltd","28350690","1,210.76","Services - Professional Fees","130218633","04/07/2018","Transportation","Bridges & Subways","R4400"
"Wolverhampton City Council","http://opendatacommunities.org/id/metropolitan-district-council/wolverhampton","708448","AECOM Infrastructure & Environment UK Ltd","28350680","2,539.39","Construction and Conversion","130218632","04/07/2018","-","GF - Accessing Growth Fund","C1100"
"Wolverhampton City Council","http://opendatacommunities.org/id/metropolitan-district-council/wolverhampton","708448","AECOM Infrastructure & Environment UK Ltd","28353125","2,221.44","Construction and Conversion","130220683","25/07/2018","-","Safety Programme","C1100"
"Wolverhampton City Council","http://opendatacommunities.org/id/metropolitan-district-council/wolverhampton","708448","AECOM Infrastructure & Environment UK Ltd","28353134","4,903.83","Construction and Conversion","130220684","25/07/2018","-","Safety Programme","C1100"
"Wolverhampton City Council","http://opendatacommunities.org/id/metropolitan-district-council/wolverhampton","708448","AECOM Infrastructure & Environment UK Ltd","28353116","6,246.83","Construction and Conversion","130220682","25/07/2018","-","Safety Programme","C1100"
"Wolverhampton City Council","http://opendatacommunities.org/id/metropolitan-district-council/wolverhampton","708448","AECOM Infrastructure & Environment UK Ltd","28351460","222.79","Construction and Conversion","130219428","11/07/2018","-","Integrated Transport","C1100"
"Wolverhampton City Council","http://opendatacommunities.org/id/metropolitan-district-council/wolverhampton","708448","AECOM Infrastructure & Environment UK Ltd","28351072","3,207.32","Construction and Conversion","130218952","11/07/2018","-","GF - Accessing Growth Fund","C1100"
"Wolverhampton City Council","http://opendatacommunities.org/id/metropolitan-district-council/wolverhampton","708448","AECOM Infrastructure & Environment UK Ltd","28352166","2,913.85","Construction and Conversion","130219933","18/07/2018","-","GF - Accessing Growth Fund","C1100"
"Wolverhampton City Council","http://opendatacommunities.org/id/metropolitan-district-council/wolverhampton","708448","AECOM Infrastructure & Environment UK Ltd","28351941","26,778.60","Construction and Conversion","130219789","13/07/2018","-","Integrated Transport","C1100"
"Wolverhampton City Council","http://opendatacommunities.org/id/metropolitan-district-council/wolverhampton","708448","AECOM Infrastructure & Environment UK Ltd","28350763","5,746.82","Construction and Conversion","130218634","04/07/2018","-","GF - Accessing Growth Fund","C1100"
"Wolverhampton City Council","http://opendatacommunities.org/id/metropolitan-district-council/wolverhampton","708448","AECOM Infrastructure & Environment UK Ltd","28350681","490.86","Services - Professional Fees","130218423","04/07/2018","Transportation","Bridges & Subways","R4400"
"Wolverhampton City Council","http://opendatacommunities.org/id/metropolitan-district-council/wolverhampton","708448","AECOM Infrastructure & Environment UK Ltd","28350869","20,000.00","Services - Professional Fees","130218787","04/07/2018","Black Country Transport","Black Country Transport Director","R4400"
"Wolverhampton City Council","http://opendatacommunities.org/id/metropolitan-district-council/wolverhampton","708448","AECOM Infrastructure & Environment UK Ltd","28351732","253.05","Construction and Conversion","130219931","27/07/2018","-","GF - Maintenance of Non Highway Structures","C1100"
"Wolverhampton City Council","http://opendatacommunities.org/id/metropolitan-district-council/wolverhampton","708448","AECOM Infrastructure & Environment UK Ltd","28353345","10,604.27","Services - Professional Fees","130220976","25/07/2018","Transportation","Strategy & Development","R4400"
"Wolverhampton City Council","http://opendatacommunities.org/id/metropolitan-district-council/wolverhampton","708448","AECOM Infrastructure & Environment UK Ltd","28353150","2,269.50","Services - Professional Fees","130220685","25/07/2018","Transportation","Section 278 and 38 Agreements","R4400"
"Wolverhampton City Council","http://opendatacommunities.org/id/metropolitan-district-council/wolverhampton","708448","AECOM Infrastructure & Environment UK Ltd","28353191","4,972.80","Construction and Conversion","130220688","25/07/2018","-","Wolverhampton Interchange","C1100"
"Wolverhampton City Council","http://opendatacommunities.org/id/metropolitan-district-council/wolverhampton","708448","AECOM Infrastructure & Environment UK Ltd","28351729","247.54","Construction and Conversion","130219560","11/07/2018","-","GF - Maintenance of Non Highway Structures","C1100"
"Wolverhampton City Council","http://opendatacommunities.org/id/metropolitan-district-council/wolverhampton","708448","AECOM Infrastructure & Environment UK Ltd","28351725","1,404.39","Construction and Conversion","130219559","11/07/2018","-","Transport Structual Maintenance","C1100"
"Wolverhampton City Council","http://opendatacommunities.org/id/metropolitan-district-council/wolverhampton","708448","AECOM Infrastructure & Environment UK Ltd","28351623","31,796.00","Construction and Conversion","130219429","13/07/2018","-","GF - Accessing Growth Fund","C1100"
"Wolverhampton City Council","http://opendatacommunities.org/id/metropolitan-district-council/wolverhampton","708448","AECOM Infrastructure & Environment UK Ltd","28350872","7,138.64","Construction and Conversion","130218790","04/07/2018","-","Wolverhampton Interchange","C1100"
"Wolverhampton City Council","http://opendatacommunities.org/id/metropolitan-district-council/wolverhampton","708448","AECOM Infrastructure & Environment UK Ltd","28350824","106.24","Construction and Conversion","130218635","04/07/2018","-","Integrated Transport","C1100"
"Wolverhampton City Council","http://opendatacommunities.org/id/metropolitan-district-council/wolverhampton","708467","Valuation Office Agency","25000011662018","1,000.00","Services - Professional Fees","130217711","13/07/2018","Housing","Wholly Owned Company - Operations","R4400"
"Wolverhampton City Council","http://opendatacommunities.org/id/metropolitan-district-council/wolverhampton","708467","Valuation Office Agency","25000015492018","3,500.00","Services - Consultants","130221879","11/07/2018","Planning","Planning","R4404"
"Wolverhampton City Council","http://opendatacommunities.org/id/metropolitan-district-council/wolverhampton","708467","Valuation Office Agency","25000085012017","1,200.00","Services - Consultants","130221882","11/07/2018","Planning","Planning","R4404"
"Wolverhampton City Council","http://opendatacommunities.org/id/metropolitan-district-council/wolverhampton","708467","Valuation Office Agency","250000121722017","5,350.00","Services - Consultants","130221878","11/07/2018","Planning","Planning","R4404"
"Wolverhampton City Council","http://opendatacommunities.org/id/metropolitan-district-council/wolverhampton","708467","Valuation Office Agency","25000085022017","700.00","Services - Consultants","130221883","11/07/2018","Planning","Planning","R4404"
"Wolverhampton City Council","http://opendatacommunities.org/id/metropolitan-district-council/wolverhampton","708467","Valuation Office Agency","25000011092018","435.30","Services - Fees and Charges","130221877","11/07/2018","Estates and Valuations","Transferred HRA Shops","R4401"
"Wolverhampton City Council","http://opendatacommunities.org/id/metropolitan-district-council/wolverhampton","708467","Valuation Office Agency","25000011642018","1,000.00","Services - Professional Fees","130217709","13/07/2018","Housing","Wholly Owned Company - Operations","R4400"
"Wolverhampton City Council","http://opendatacommunities.org/id/metropolitan-district-council/wolverhampton","708467","Valuation Office Agency","25000085002017","4,793.00","Services - Consultants","130221881","11/07/2018","Planning","Planning","R4404"
"Wolverhampton City Council","http://opendatacommunities.org/id/metropolitan-district-council/wolverhampton","708467","Valuation Office Agency","25000023232018","2,000.00","Services - Professional Fees","130221880","25/07/2018","Estates and Valuations","Disposal Costs","R4400"
"Wolverhampton City Council","http://opendatacommunities.org/id/metropolitan-district-council/wolverhampton","708467","Valuation Office Agency","25000011652018","1,000.00","Services - Professional Fees","130217710","13/07/2018","Housing","Wholly Owned Company - Operations","R4400"
"Wolverhampton City Council","http://opendatacommunities.org/id/metropolitan-district-council/wolverhampton","708476","Vehicle Weighing Solutions Limited","INV20572","50.00","Services - Professional Fees","190483212","11/07/2018","Fleet Services","Fleet Management","R4400"
"Wolverhampton City Council","http://opendatacommunities.org/id/metropolitan-district-council/wolverhampton","708476","Vehicle Weighing Solutions Limited","INV20572","176.00","Services - Professional Fees","190483212","11/07/2018","Fleet Services","Fleet Management","R4400"
"Wolverhampton City Council","http://opendatacommunities.org/id/metropolitan-district-council/wolverhampton","708476","Vehicle Weighing Solutions Limited","INV20572","295.31","Services - Professional Fees","190483212","11/07/2018","Fleet Services","Fleet Management","R4400"
"Wolverhampton City Council","http://opendatacommunities.org/id/metropolitan-district-council/wolverhampton","708476","Vehicle Weighing Solutions Limited","INV20572","208.25","Services - Professional Fees","190483212","11/07/2018","Fleet Services","Fleet Management","R4400"
"Wolverhampton City Council","http://opendatacommunities.org/id/metropolitan-district-council/wolverhampton","708481","Venue Catering Partner Limited","30340","75.67","Room Hire","130223345","25/07/2018","Licensing","Licensing - Private Hire Vehicles","R2201"
"Wolverhampton City Council","http://opendatacommunities.org/id/metropolitan-district-council/wolverhampton","708481","Venue Catering Partner Limited","30565","187.50","Room Hire","130223348","25/07/2018","Standards and Vulnerable Pupils","SENDIASS","R2201"
"Wolverhampton City Council","http://opendatacommunities.org/id/metropolitan-district-council/wolverhampton","708481","Venue Catering Partner Limited","30106","41.67","Catering","130221884","13/07/2018","Specialist Support","Youth Zone","R4100"
"Wolverhampton City Council","http://opendatacommunities.org/id/metropolitan-district-council/wolverhampton","708481","Venue Catering Partner Limited","30567","2,154.00","Catering","130223350","25/07/2018","Standards and Vulnerable Pupils","SENDIASS","R4100"
"Wolverhampton City Council","http://opendatacommunities.org/id/metropolitan-district-council/wolverhampton","708483","Veolia Es (UK) Limited","OP/I525977","302.72","TPP - Waste Disposal","130220580","11/07/2018","Environmental Maintenance","Ground Maintenance Overheads","R5003"
"Wolverhampton City Council","http://opendatacommunities.org/id/metropolitan-district-council/wolverhampton","708483","Veolia Es (UK) Limited","OP/I525976","438.24","TPP - Waste Disposal","130220579","11/07/2018","Environmental Maintenance","Ground Maintenance Overheads","R5003"
"Wolverhampton City Council","http://opendatacommunities.org/id/metropolitan-district-council/wolverhampton","708484","Verifone Services UK&Ireland Limited","7500926101","19.99","Equipment - Purchase","130220425","11/07/2018","Catering","Civic Centre Catering","R4000"
"Wolverhampton City Council","http://opendatacommunities.org/id/metropolitan-district-council/wolverhampton","708484","Verifone Services UK&Ireland Limited","7500905908","19.99","Equipment - Purchase","130217717","11/07/2018","Catering","Education Catering - General Overheads","R4000"
"Wolverhampton City Council","http://opendatacommunities.org/id/metropolitan-district-council/wolverhampton","708484","Verifone Services UK&Ireland Limited","7500934055","39.98","R&M - Departmental planned (internal)","130220427","11/07/2018","Adult Education","Foyer Building","R2000"
"Wolverhampton City Council","http://opendatacommunities.org/id/metropolitan-district-council/wolverhampton","708484","Verifone Services UK&Ireland Limited","7200927496","24.24","Equipment - Hire","130220424","11/07/2018","Leisure Services","Bert Williams Leisure Centre Caf�","R4001"
"Wolverhampton City Council","http://opendatacommunities.org/id/metropolitan-district-council/wolverhampton","708484","Verifone Services UK&Ireland Limited","7500900179","39.98","R&M - Departmental planned (internal)","130217716","04/07/2018","Adult Education","Foyer Building","R2000"
"Wolverhampton City Council","http://opendatacommunities.org/id/metropolitan-district-council/wolverhampton","708484","Verifone Services UK&Ireland Limited","7500929741","33.00","Equipment - Hire","130220426","11/07/2018","Catering","Civic Centre Catering","R4001"
"Wolverhampton City Council","http://opendatacommunities.org/id/metropolitan-district-council/wolverhampton","708484","Verifone Services UK&Ireland Limited","7500883715","60.00","Equipment - Hire","130220977","04/07/2018","Leisure Services","Bert Williams Leisure Centre Caf�","R4001"
"Wolverhampton City Council","http://opendatacommunities.org/id/metropolitan-district-council/wolverhampton","708513","Vodafone Corporate Limited","CEM75381","157.00","Comms - Mobile Telephones","130216534","23/07/2018","ICTS","Strategic ICTS (ICT Service Budget)","R4507"
"Wolverhampton City Council","http://opendatacommunities.org/id/metropolitan-district-council/wolverhampton","708513","Vodafone Corporate Limited","000087519983","267.16","Comms - Mobile Telephones","130216531","23/07/2018","ICTS","Strategic ICTS (ICT Service Budget)","R4507"
"Wolverhampton City Council","http://opendatacommunities.org/id/metropolitan-district-council/wolverhampton","708513","Vodafone Corporate Limited","000087571837","237.22","Comms - Mobile Telephones","130216532","23/07/2018","ICTS","Strategic ICTS (ICT Service Budget)","R4507"
"Wolverhampton City Council","http://opendatacommunities.org/id/metropolitan-district-council/wolverhampton","708555","Walsall Mbc","698635","6,491.00","Grant Payments","130220582","18/07/2018","City Development","Blue Network (ERDF)","R4700"
"Wolverhampton City Council","http://opendatacommunities.org/id/metropolitan-district-council/wolverhampton","708555","Walsall Mbc","698631","3,592.00","Grant Payments","130220581","18/07/2018","City Development","Blue Network (ERDF)","R4700"
"Wolverhampton City Council","http://opendatacommunities.org/id/metropolitan-district-council/wolverhampton","708556","Walsall Metropolitan Borough Council","697288","1,249.35","TPP - Payments to Local Authorities","130221885","11/07/2018","Waste and Recycling Service","Waste Disposal - General","R5100"
"Wolverhampton City Council","http://opendatacommunities.org/id/metropolitan-district-council/wolverhampton","708566","Warners Private Hire","54A","1,764.00","Client Transport","130221886","18/07/2018","Special Educational Needs","Special - Transport","R3042"
"Wolverhampton City Council","http://opendatacommunities.org/id/metropolitan-district-council/wolverhampton","708581","Wates Construction Limited","110777","162,954.00","Construction and Conversion","130222558","18/07/2018","-","Fire Safety Improvements","C1100"
"Wolverhampton City Council","http://opendatacommunities.org/id/metropolitan-district-council/wolverhampton","708581","Wates Construction Limited","110794","90,486.00","Construction and Conversion","130222740","18/07/2018","-","Roof Refurbishment Programme","C1100"
"Wolverhampton City Council","http://opendatacommunities.org/id/metropolitan-district-council/wolverhampton","708581","Wates Construction Limited","110796","260,738.00","Construction and Conversion","130222741","18/07/2018","-","Roof Refurbishment Programme","C1100"
"Wolverhampton City Council","http://opendatacommunities.org/id/metropolitan-district-council/wolverhampton","708588","WBP Visual Solutions Limited","110742","238.00","Printing","130219561","04/07/2018","Visitor Economy","Education And Access","R4300"
"Wolverhampton City Council","http://opendatacommunities.org/id/metropolitan-district-council/wolverhampton","708588","WBP Visual Solutions Limited","110741","382.50","Printing","130218795","04/07/2018","Visitor Economy","Contemporary Gallery - NPO ACE WAG","R4300"
"Wolverhampton City Council","http://opendatacommunities.org/id/metropolitan-district-council/wolverhampton","708588","WBP Visual Solutions Limited","110755","1,632.50","Services - Professional Fees","130223452","27/07/2018","Visitor Economy","Melanie Tomlinson Exhibition -  ACE NPO WAG","R4400"
"Wolverhampton City Council","http://opendatacommunities.org/id/metropolitan-district-council/wolverhampton","708588","WBP Visual Solutions Limited","110754","160.00","Printing","130221887","18/07/2018","Visitor Economy","Education And Access","R4300"
"Wolverhampton City Council","http://opendatacommunities.org/id/metropolitan-district-council/wolverhampton","708601","Webgibb Welding Limited","C6857","115.00","R&M - Departmental planned (external)","130223080","27/07/2018","Maintenance Programme","Centralised R&M","R2001"
"Wolverhampton City Council","http://opendatacommunities.org/id/metropolitan-district-council/wolverhampton","708601","Webgibb Welding Limited","C6855","325.00","R&M - Departmental planned (internal)","130222475","18/07/2018","Maintenance Programme","Centralised R&M","R2000"
"Wolverhampton City Council","http://opendatacommunities.org/id/metropolitan-district-council/wolverhampton","708601","Webgibb Welding Limited","C6852","85.00","Equipment - R & M","130221500","11/07/2018","Leisure Services","Aldersley Leisure Village","R4003"
"Wolverhampton City Council","http://opendatacommunities.org/id/metropolitan-district-council/wolverhampton","708637","West Country Group","21449","105.60","Printing","130220154","18/07/2018","ICTS","Document Centre - General","R4300"
"Wolverhampton City Council","http://opendatacommunities.org/id/metropolitan-district-council/wolverhampton","708649","West Midlands Employers","10230","500.00","Subscriptions","130222364","13/07/2018","Human Resources","HR Advice","R4701"
"Wolverhampton City Council","http://opendatacommunities.org/id/metropolitan-district-council/wolverhampton","708649","West Midlands Employers","10240","6,250.00","Subscriptions","130222476","18/07/2018","Human Resources","HR Advice","R4701"
"Wolverhampton City Council","http://opendatacommunities.org/id/metropolitan-district-council/wolverhampton","708649","West Midlands Employers","10245","850.00","Training Expenses","130223081","25/07/2018","Public Service Reform","Centralised Training","R1650"
"Wolverhampton City Council","http://opendatacommunities.org/id/metropolitan-district-council/wolverhampton","708649","West Midlands Employers","WOL_010981","220.00","Staff Advertising Costs","130222743","18/07/2018","The Hub","Central Advertising","R1700"
"Wolverhampton City Council","http://opendatacommunities.org/id/metropolitan-district-council/wolverhampton","708649","West Midlands Employers","10053","21,750.00","Subscriptions","130223777","27/07/2018","Human Resources","HR Advice","R4701"
"Wolverhampton City Council","http://opendatacommunities.org/id/metropolitan-district-council/wolverhampton","708649","West Midlands Employers","WOL_010773","220.00","Staff Advertising Costs","130220978","04/07/2018","The Hub","Central Advertising","R1700"
"Wolverhampton City Council","http://opendatacommunities.org/id/metropolitan-district-council/wolverhampton","708649","West Midlands Employers","WOL_010962","220.00","Staff Advertising Costs","130222742","18/07/2018","The Hub","Central Advertising","R1700"
"Wolverhampton City Council","http://opendatacommunities.org/id/metropolitan-district-council/wolverhampton","708650","West Midlands Fire Service","600038527","16,887.78","TPP - Social Care Support Services","130219280","04/07/2018","Independent Living Service","Telecare","R5501"
"Wolverhampton City Council","http://opendatacommunities.org/id/metropolitan-district-council/wolverhampton","708656","West Midlands Travel Limited","XASI/00107885","2,630.50","Public Transport","130220291","11/07/2018","Special Educational Needs","Secondary- Transport","R3300"
"Wolverhampton City Council","http://opendatacommunities.org/id/metropolitan-district-council/wolverhampton","708656","West Midlands Travel Limited","SLIN/00040116","2,580.00","Public Transport","130222036","23/07/2018","Adult Education","24+ Advanced Learning Loan","R3300"
"Wolverhampton City Council","http://opendatacommunities.org/id/metropolitan-district-council/wolverhampton","708656","West Midlands Travel Limited","SLIN/00040116","13.40","Comms - Postage","130222036","23/07/2018","Adult Education","24+ Advanced Learning Loan","R4503"
"Wolverhampton City Council","http://opendatacommunities.org/id/metropolitan-district-council/wolverhampton","708656","West Midlands Travel Limited","XASI/00107745","3,629.00","Public Transport","130222744","18/07/2018","Special Educational Needs","Secondary- Transport","R3300"
"Wolverhampton City Council","http://opendatacommunities.org/id/metropolitan-district-council/wolverhampton","708656","West Midlands Travel Limited","XASI/00108047","618.00","Public Transport","130220430","18/07/2018","Special Educational Needs","Secondary- Transport","R3300"
"Wolverhampton City Council","http://opendatacommunities.org/id/metropolitan-district-council/wolverhampton","708656","West Midlands Travel Limited","XASI/00108191","570.50","Public Transport","130222745","25/07/2018","Special Educational Needs","Secondary- Transport","R3300"
"Wolverhampton City Council","http://opendatacommunities.org/id/metropolitan-district-council/wolverhampton","708679","Whats On Magazines Group Limited","33208","800.00","Marketing \ Non-staff advertising","130220830","04/07/2018","Visitor Economy","Arts Publicity","R4317"
"Wolverhampton City Council","http://opendatacommunities.org/id/metropolitan-district-council/wolverhampton","708705","Willenhall Engine Centre","65240","944.69","Services - Professional Fees","190480847","04/07/2018","Fleet Services","Fleet Management","R4400"
"Wolverhampton City Council","http://opendatacommunities.org/id/metropolitan-district-council/wolverhampton","708708","William Gough Limited","84558","144.74","R&M - Departmental planned (external)","130215602","04/07/2018","Maintenance Programme","Centralised R&M","R2001"
"Wolverhampton City Council","http://opendatacommunities.org/id/metropolitan-district-council/wolverhampton","708708","William Gough Limited","84641","40.00","R&M - Departmental planned (external)","130217891","04/07/2018","Maintenance Programme","Centralised R&M","R2001"
"Wolverhampton City Council","http://opendatacommunities.org/id/metropolitan-district-council/wolverhampton","708708","William Gough Limited","84409","251.23","R&M - Departmental planned (external)","130214309","04/07/2018","Bereavement Services","Cemeteries","R2001"
"Wolverhampton City Council","http://opendatacommunities.org/id/metropolitan-district-council/wolverhampton","708708","William Gough Limited","84504","51.20","R&M - Departmental planned (external)","130215129","04/07/2018","Maintenance Programme","Centralised R&M","R2001"
"Wolverhampton City Council","http://opendatacommunities.org/id/metropolitan-district-council/wolverhampton","708708","William Gough Limited","84502","134.92","R&M - Departmental planned (external)","130215127","04/07/2018","Maintenance Programme","Centralised R&M","R2001"
"Wolverhampton City Council","http://opendatacommunities.org/id/metropolitan-district-council/wolverhampton","708708","William Gough Limited","84517","40.00","R&M - Departmental planned (external)","130215280","04/07/2018","Maintenance Programme","Centralised R&M","R2001"
"Wolverhampton City Council","http://opendatacommunities.org/id/metropolitan-district-council/wolverhampton","708708","William Gough Limited","84709","83.24","R&M - Departmental planned (external)","130219434","11/07/2018","Maintenance Programme","Centralised R&M","R2001"
"Wolverhampton City Council","http://opendatacommunities.org/id/metropolitan-district-council/wolverhampton","708708","William Gough Limited","84668","6,911.54","R&M - Departmental planned (external)","130219285","11/07/2018","Markets","Bilston Market and Licensed Operations","R2001"
"Wolverhampton City Council","http://opendatacommunities.org/id/metropolitan-district-council/wolverhampton","708708","William Gough Limited","84701","415.96","R&M - Departmental planned (external)","130219430","11/07/2018","Maintenance Programme","Centralised R&M","R2001"
"Wolverhampton City Council","http://opendatacommunities.org/id/metropolitan-district-council/wolverhampton","708708","William Gough Limited","84687","40.00","R&M - Departmental planned (external)","130219297","11/07/2018","Facilities Management","Magistrates","R2001"
"Wolverhampton City Council","http://opendatacommunities.org/id/metropolitan-district-council/wolverhampton","708708","William Gough Limited","84694","207.51","R&M - Departmental planned (external)","130219303","11/07/2018","Maintenance Programme","Centralised R&M","R2001"
"Wolverhampton City Council","http://opendatacommunities.org/id/metropolitan-district-council/wolverhampton","708708","William Gough Limited","84530","218.87","R&M - Departmental planned (external)","130215285","18/07/2018","Maintenance Programme","Centralised R&M","R2001"
"Wolverhampton City Council","http://opendatacommunities.org/id/metropolitan-district-council/wolverhampton","708708","William Gough Limited","84744","118.79","R&M - Departmental planned (external)","130220157","18/07/2018","Maintenance Programme","Centralised R&M","R2001"
"Wolverhampton City Council","http://opendatacommunities.org/id/metropolitan-district-council/wolverhampton","708708","William Gough Limited","84761","40.00","R&M - Departmental planned (external)","130220168","18/07/2018","Maintenance Programme","Civic Centre Repairs & Maintenance","R2001"
"Wolverhampton City Council","http://opendatacommunities.org/id/metropolitan-district-council/wolverhampton","708708","William Gough Limited","84713","419.24","R&M - Departmental planned (external)","130219938","18/07/2018","Schools","Bilston Church of England Primary School","R2001"
"Wolverhampton City Council","http://opendatacommunities.org/id/metropolitan-district-council/wolverhampton","708708","William Gough Limited","84732","144.74","R&M - Departmental planned (external)","130219952","18/07/2018","Maintenance Programme","Centralised R&M","R2001"
"Wolverhampton City Council","http://opendatacommunities.org/id/metropolitan-district-council/wolverhampton","708708","William Gough Limited","84733","64.42","R&M - Departmental planned (external)","130219953","18/07/2018","Facilities Management","Caretakers Community Centre","R2001"
"Wolverhampton City Council","http://opendatacommunities.org/id/metropolitan-district-council/wolverhampton","708708","William Gough Limited","84720","40.00","R&M - Departmental planned (external)","130219943","18/07/2018","Maintenance Programme","Centralised R&M","R2001"
"Wolverhampton City Council","http://opendatacommunities.org/id/metropolitan-district-council/wolverhampton","708708","William Gough Limited","84770","72.40","R&M - Departmental planned (external)","130220175","18/07/2018","Maintenance Programme","Centralised R&M","R2001"
"Wolverhampton City Council","http://opendatacommunities.org/id/metropolitan-district-council/wolverhampton","708708","William Gough Limited","84724","126.60","R&M - Departmental planned (external)","130219946","18/07/2018","Maintenance Programme","Centralised R&M","R2001"
"Wolverhampton City Council","http://opendatacommunities.org/id/metropolitan-district-council/wolverhampton","708708","William Gough Limited","84786","51.20","R&M - Departmental planned (external)","130220303","18/07/2018","Maintenance Programme","Centralised R&M","R2001"
"Wolverhampton City Council","http://opendatacommunities.org/id/metropolitan-district-council/wolverhampton","708708","William Gough Limited","C2382","-341.88","R&M - Departmental planned (external)","130215852","18/07/2018","Visitor Economy","Makers Dozen","R2001"
"Wolverhampton City Council","http://opendatacommunities.org/id/metropolitan-district-council/wolverhampton","708708","William Gough Limited","84593","167.19","R&M - Departmental planned (external)","130216537","13/07/2018","Bereavement Services","Cemeteries","R2001"
"Wolverhampton City Council","http://opendatacommunities.org/id/metropolitan-district-council/wolverhampton","708708","William Gough Limited","84821","88.46","R&M - Departmental planned (external)","130220845","25/07/2018","Maintenance Programme","Centralised R&M","R2001"
"Wolverhampton City Council","http://opendatacommunities.org/id/metropolitan-district-council/wolverhampton","708708","William Gough Limited","84818","278.36","R&M - Departmental planned (external)","130220842","25/07/2018","Markets","Wolverhampton Indoor and Open Market","R2001"
"Wolverhampton City Council","http://opendatacommunities.org/id/metropolitan-district-council/wolverhampton","708708","William Gough Limited","84863","10,735.44","Construction and Conversion","130221000","25/07/2018","-","Corporate Asset Management","C1100"
"Wolverhampton City Council","http://opendatacommunities.org/id/metropolitan-district-council/wolverhampton","708708","William Gough Limited","84609","40.97","R&M - Departmental planned (external)","130216735","25/07/2018","Maintenance Programme","Centralised R&M","R2001"
"Wolverhampton City Council","http://opendatacommunities.org/id/metropolitan-district-council/wolverhampton","708708","William Gough Limited","84119","559.48","R&M - Departmental planned (external)","130209455","25/07/2018","Maintenance Programme","Centralised R&M","R2001"
"Wolverhampton City Council","http://opendatacommunities.org/id/metropolitan-district-council/wolverhampton","708708","William Gough Limited","84869","21,000.00","Construction and Conversion","130221004","25/07/2018","-","GF - Cricket provision","C1100"
"Wolverhampton City Council","http://opendatacommunities.org/id/metropolitan-district-council/wolverhampton","708708","William Gough Limited","84870","14,000.00","Construction and Conversion","130221005","25/07/2018","-","GF - Cricket provision","C1100"
"Wolverhampton City Council","http://opendatacommunities.org/id/metropolitan-district-council/wolverhampton","708708","William Gough Limited","84802","384.08","R&M - Departmental planned (external)","130220692","25/07/2018","Maintenance Programme","Centralised R&M","R2001"
"Wolverhampton City Council","http://opendatacommunities.org/id/metropolitan-district-council/wolverhampton","708708","William Gough Limited","84846","3,200.39","R&M - Departmental planned (external)","130220990","25/07/2018","Maintenance Programme","Centralised R&M","R2001"
"Wolverhampton City Council","http://opendatacommunities.org/id/metropolitan-district-council/wolverhampton","708708","William Gough Limited","84831","312.56","R&M - Departmental planned (external)","130220983","25/07/2018","Maintenance Programme","Centralised R&M","R2001"
"Wolverhampton City Council","http://opendatacommunities.org/id/metropolitan-district-council/wolverhampton","708708","William Gough Limited","84825","93.84","R&M - Departmental planned (external)","130220849","25/07/2018","Maintenance Programme","Centralised R&M","R2001"
"Wolverhampton City Council","http://opendatacommunities.org/id/metropolitan-district-council/wolverhampton","708708","William Gough Limited","84828","138.00","R&M - Departmental planned (external)","130220980","25/07/2018","Maintenance Programme","Centralised R&M","R2001"
"Wolverhampton City Council","http://opendatacommunities.org/id/metropolitan-district-council/wolverhampton","708708","William Gough Limited","84811","83.60","R&M - Departmental planned (external)","130220836","25/07/2018","Maintenance Programme","Centralised R&M","R2001"
"Wolverhampton City Council","http://opendatacommunities.org/id/metropolitan-district-council/wolverhampton","708708","William Gough Limited","84858","40.00","R&M - Departmental planned (external)","130220995","25/07/2018","Maintenance Programme","Centralised R&M","R2001"
"Wolverhampton City Council","http://opendatacommunities.org/id/metropolitan-district-council/wolverhampton","708708","William Gough Limited","84803","159.15","R&M - Departmental planned (external)","130220693","25/07/2018","Facilities Management","Parkfields Office Accomodation","R2001"
"Wolverhampton City Council","http://opendatacommunities.org/id/metropolitan-district-council/wolverhampton","708708","William Gough Limited","84773","86.50","R&M - Departmental planned (external)","130220293","23/07/2018","Maintenance Programme","Civic Centre Repairs & Maintenance","R2001"
"Wolverhampton City Council","http://opendatacommunities.org/id/metropolitan-district-council/wolverhampton","708708","William Gough Limited","84683","194.56","R&M - Departmental planned (external)","130219295","23/07/2018","Maintenance Programme","Civic Centre Repairs & Maintenance","R2001"
"Wolverhampton City Council","http://opendatacommunities.org/id/metropolitan-district-council/wolverhampton","708708","William Gough Limited","84708","360.68","R&M - Departmental planned (external)","130219433","11/07/2018","Maintenance Programme","Centralised R&M","R2001"
"Wolverhampton City Council","http://opendatacommunities.org/id/metropolitan-district-council/wolverhampton","708708","William Gough Limited","84707","130.06","R&M - Departmental planned (external)","130219432","11/07/2018","Maintenance Programme","Centralised R&M","R2001"
"Wolverhampton City Council","http://opendatacommunities.org/id/metropolitan-district-council/wolverhampton","708708","William Gough Limited","84691","40.00","R&M - Departmental planned (external)","130219301","11/07/2018","Maintenance Programme","Centralised R&M","R2001"
"Wolverhampton City Council","http://opendatacommunities.org/id/metropolitan-district-council/wolverhampton","708708","William Gough Limited","84690","45.12","R&M - Departmental planned (external)","130219300","11/07/2018","Maintenance Programme","Centralised R&M","R2001"
"Wolverhampton City Council","http://opendatacommunities.org/id/metropolitan-district-council/wolverhampton","708708","William Gough Limited","84692","68.10","R&M - Departmental planned (external)","130219302","11/07/2018","Maintenance Programme","Civic Centre Repairs & Maintenance","R2001"
"Wolverhampton City Council","http://opendatacommunities.org/id/metropolitan-district-council/wolverhampton","708708","William Gough Limited","84657","10,497.56","R&M - Departmental planned (external)","130219283","11/07/2018","Corporate Asset Management","Centralised Planned Maintenance","R2001"
"Wolverhampton City Council","http://opendatacommunities.org/id/metropolitan-district-council/wolverhampton","708708","William Gough Limited","84518","40.00","R&M - Departmental planned (external)","130215281","04/07/2018","Bereavement Services","Cemeteries","R2001"
"Wolverhampton City Council","http://opendatacommunities.org/id/metropolitan-district-council/wolverhampton","708708","William Gough Limited","82922","379.50","R&M - Departmental planned (external)","130205135","04/07/2018","Local Economy","Blakenhall Community & Healthy Living Centre","R2001"
"Wolverhampton City Council","http://opendatacommunities.org/id/metropolitan-district-council/wolverhampton","708708","William Gough Limited","84322","40.00","R&M - Departmental planned (external)","130213580","04/07/2018","Maintenance Programme","Centralised R&M","R2001"
"Wolverhampton City Council","http://opendatacommunities.org/id/metropolitan-district-council/wolverhampton","708708","William Gough Limited","84475","38.65","Construction and Conversion","130214523","04/07/2018","-","Structural works","C1100"
"Wolverhampton City Council","http://opendatacommunities.org/id/metropolitan-district-council/wolverhampton","708708","William Gough Limited","84540","107.23","R&M - Departmental planned (external)","130215290","04/07/2018","Maintenance Programme","Centralised R&M","R2001"
"Wolverhampton City Council","http://opendatacommunities.org/id/metropolitan-district-council/wolverhampton","708708","William Gough Limited","84432","111.31","R&M - Departmental planned (external)","130214483","04/07/2018","Bereavement Services","Cemeteries","R2001"
"Wolverhampton City Council","http://opendatacommunities.org/id/metropolitan-district-council/wolverhampton","708708","William Gough Limited","84730","40.00","R&M - Departmental planned (external)","130219951","18/07/2018","Maintenance Programme","Centralised R&M","R2001"
"Wolverhampton City Council","http://opendatacommunities.org/id/metropolitan-district-council/wolverhampton","708708","William Gough Limited","84742","40.00","R&M - Departmental planned (external)","130220832","18/07/2018","Maintenance Programme","Centralised R&M","R2001"
"Wolverhampton City Council","http://opendatacommunities.org/id/metropolitan-district-council/wolverhampton","708708","William Gough Limited","84771","328.93","R&M - Departmental planned (external)","130220176","18/07/2018","Maintenance Programme","Centralised R&M","R2001"
"Wolverhampton City Council","http://opendatacommunities.org/id/metropolitan-district-council/wolverhampton","708708","William Gough Limited","84782","93.41","R&M - Departmental planned (external)","130220301","18/07/2018","Maintenance Programme","Centralised R&M","R2001"
"Wolverhampton City Council","http://opendatacommunities.org/id/metropolitan-district-council/wolverhampton","708708","William Gough Limited","84718","204.69","R&M - Departmental planned (external)","130219942","18/07/2018","Maintenance Programme","Centralised R&M","R2001"
"Wolverhampton City Council","http://opendatacommunities.org/id/metropolitan-district-council/wolverhampton","708708","William Gough Limited","84727","1,103.82","R&M - Departmental planned (external)","130219949","18/07/2018","Maintenance Programme","Centralised R&M","R2001"
"Wolverhampton City Council","http://opendatacommunities.org/id/metropolitan-district-council/wolverhampton","708708","William Gough Limited","84734","58.33","R&M - Departmental planned (external)","130220155","18/07/2018","Markets","Bilston Market and Licensed Operations","R2001"
"Wolverhampton City Council","http://opendatacommunities.org/id/metropolitan-district-council/wolverhampton","708708","William Gough Limited","84763","40.00","R&M - Departmental planned (external)","130220169","18/07/2018","Maintenance Programme","Centralised R&M","R2001"
"Wolverhampton City Council","http://opendatacommunities.org/id/metropolitan-district-council/wolverhampton","708708","William Gough Limited","84754","48.02","R&M - Departmental planned (external)","130220166","18/07/2018","Maintenance Programme","Centralised R&M","R2001"
"Wolverhampton City Council","http://opendatacommunities.org/id/metropolitan-district-council/wolverhampton","708708","William Gough Limited","84740","75.67","R&M - Departmental planned (external)","130219957","18/07/2018","Maintenance Programme","Centralised R&M","R2001"
"Wolverhampton City Council","http://opendatacommunities.org/id/metropolitan-district-council/wolverhampton","708708","William Gough Limited","84766","140.63","R&M - Departmental planned (external)","130220172","18/07/2018","Maintenance Programme","Centralised R&M","R2001"
"Wolverhampton City Council","http://opendatacommunities.org/id/metropolitan-district-council/wolverhampton","708708","William Gough Limited","84597","167.19","R&M - Departmental planned (external)","130216541","13/07/2018","Maintenance Programme","Centralised R&M","R2001"
"Wolverhampton City Council","http://opendatacommunities.org/id/metropolitan-district-council/wolverhampton","708708","William Gough Limited","84878","580.32","R&M - Departmental planned (external)","130221009","25/07/2018","Maintenance Programme","Centralised R&M","R2001"
"Wolverhampton City Council","http://opendatacommunities.org/id/metropolitan-district-council/wolverhampton","708708","William Gough Limited","84855","1,336.51","R&M - Departmental planned (external)","130220993","25/07/2018","Maintenance Programme","Civic Centre Repairs & Maintenance","R2001"
"Wolverhampton City Council","http://opendatacommunities.org/id/metropolitan-district-council/wolverhampton","708708","William Gough Limited","84669","6,454.15","R&M - Departmental planned (external)","130219286","25/07/2018","Markets","Bilston Market and Licensed Operations","R2001"
"Wolverhampton City Council","http://opendatacommunities.org/id/metropolitan-district-council/wolverhampton","708708","William Gough Limited","84817","302.21","R&M - Departmental planned (external)","130220841","25/07/2018","Maintenance Programme","Centralised R&M","R2001"
"Wolverhampton City Council","http://opendatacommunities.org/id/metropolitan-district-council/wolverhampton","708708","William Gough Limited","84496","75.49","R&M - Departmental planned (external)","130215125","25/07/2018","Maintenance Programme","Centralised R&M","R2001"
"Wolverhampton City Council","http://opendatacommunities.org/id/metropolitan-district-council/wolverhampton","708708","William Gough Limited","84615","131.60","R&M - Departmental planned (external)","130216741","25/07/2018","Maintenance Programme","Centralised R&M","R2001"
"Wolverhampton City Council","http://opendatacommunities.org/id/metropolitan-district-council/wolverhampton","708708","William Gough Limited","84572","445.85","R&M - Departmental planned (external)","130216019","25/07/2018","Maintenance Programme","Centralised R&M","R2001"
"Wolverhampton City Council","http://opendatacommunities.org/id/metropolitan-district-council/wolverhampton","708708","William Gough Limited","84608","40.96","R&M - Departmental planned (external)","130216734","25/07/2018","Maintenance Programme","Centralised R&M","R2001"
"Wolverhampton City Council","http://opendatacommunities.org/id/metropolitan-district-council/wolverhampton","708708","William Gough Limited","84829","910.18","R&M - Departmental planned (external)","130220981","25/07/2018","Maintenance Programme","Centralised R&M","R2001"
"Wolverhampton City Council","http://opendatacommunities.org/id/metropolitan-district-council/wolverhampton","708708","William Gough Limited","84816","31.85","R&M - Departmental planned (external)","130220840","25/07/2018","Maintenance Programme","Centralised R&M","R2001"
"Wolverhampton City Council","http://opendatacommunities.org/id/metropolitan-district-council/wolverhampton","708708","William Gough Limited","84871","4,000.00","R&M - Departmental planned (external)","130221006","25/07/2018","Maintenance Programme","Centralised R&M","R2001"
"Wolverhampton City Council","http://opendatacommunities.org/id/metropolitan-district-council/wolverhampton","708708","William Gough Limited","84810","86.81","R&M - Departmental planned (external)","130220835","25/07/2018","Maintenance Programme","Centralised R&M","R2001"
"Wolverhampton City Council","http://opendatacommunities.org/id/metropolitan-district-council/wolverhampton","708708","William Gough Limited","84823","159.15","R&M - Departmental planned (external)","130220847","25/07/2018","Maintenance Programme","Centralised R&M","R2001"
"Wolverhampton City Council","http://opendatacommunities.org/id/metropolitan-district-council/wolverhampton","708708","William Gough Limited","84848","70,000.00","R&M - Departmental planned (external)","130220991","25/07/2018","Schools","Pupil Referral Units - Orchard Centre","R2001"
"Wolverhampton City Council","http://opendatacommunities.org/id/metropolitan-district-council/wolverhampton","708708","William Gough Limited","84613","75.54","R&M - Departmental planned (external)","130216739","06/07/2018","Maintenance Programme","Centralised R&M","R2001"
"Wolverhampton City Council","http://opendatacommunities.org/id/metropolitan-district-council/wolverhampton","708708","William Gough Limited","84774","69.17","R&M - Departmental planned (external)","130220294","23/07/2018","Maintenance Programme","Centralised R&M","R2001"
"Wolverhampton City Council","http://opendatacommunities.org/id/metropolitan-district-council/wolverhampton","708708","William Gough Limited","84519","40.00","R&M - Departmental planned (external)","130215282","04/07/2018","Maintenance Programme","Centralised R&M","R2001"
"Wolverhampton City Council","http://opendatacommunities.org/id/metropolitan-district-council/wolverhampton","708708","William Gough Limited","84568","210.54","R&M - Departmental planned (external)","130215851","04/07/2018","Maintenance Programme","Centralised R&M","R2001"
"Wolverhampton City Council","http://opendatacommunities.org/id/metropolitan-district-council/wolverhampton","708708","William Gough Limited","84418","40.00","R&M - Departmental planned (external)","130214317","04/07/2018","Maintenance Programme","Centralised R&M","R2001"
"Wolverhampton City Council","http://opendatacommunities.org/id/metropolitan-district-council/wolverhampton","708708","William Gough Limited","84299","85.68","R&M - Departmental planned (external)","130212990","04/07/2018","Maintenance Programme","Centralised R&M","R2001"
"Wolverhampton City Council","http://opendatacommunities.org/id/metropolitan-district-council/wolverhampton","708708","William Gough Limited","C2383","-30.74","R&M - Departmental planned (external)","130215853","04/07/2018","Maintenance Programme","Centralised R&M","R2001"
"Wolverhampton City Council","http://opendatacommunities.org/id/metropolitan-district-council/wolverhampton","708708","William Gough Limited","84751","193.99","R&M - Departmental planned (external)","130220163","18/07/2018","Maintenance Programme","Civic Centre Repairs & Maintenance","R2001"
"Wolverhampton City Council","http://opendatacommunities.org/id/metropolitan-district-council/wolverhampton","708708","William Gough Limited","84750","194.56","R&M - Departmental planned (external)","130220162","18/07/2018","Maintenance Programme","Civic Centre Repairs & Maintenance","R2001"
"Wolverhampton City Council","http://opendatacommunities.org/id/metropolitan-district-council/wolverhampton","708708","William Gough Limited","84765","40.00","R&M - Departmental planned (external)","130220171","18/07/2018","Maintenance Programme","Centralised R&M","R2001"
"Wolverhampton City Council","http://opendatacommunities.org/id/metropolitan-district-council/wolverhampton","708708","William Gough Limited","84715","40.00","R&M - Departmental planned (external)","130219940","18/07/2018","Maintenance Programme","Centralised R&M","R2001"
"Wolverhampton City Council","http://opendatacommunities.org/id/metropolitan-district-council/wolverhampton","708708","William Gough Limited","84745","40.00","R&M - Departmental planned (external)","130220158","18/07/2018","Maintenance Programme","Centralised R&M","R2001"
"Wolverhampton City Council","http://opendatacommunities.org/id/metropolitan-district-council/wolverhampton","708708","William Gough Limited","84739","88.98","R&M - Departmental planned (external)","130219956","18/07/2018","Maintenance Programme","Centralised R&M","R2001"
"Wolverhampton City Council","http://opendatacommunities.org/id/metropolitan-district-council/wolverhampton","708708","William Gough Limited","84784","93.41","R&M - Departmental planned (external)","130220302","18/07/2018","Maintenance Programme","Centralised R&M","R2001"
"Wolverhampton City Council","http://opendatacommunities.org/id/metropolitan-district-council/wolverhampton","708708","William Gough Limited","84747","859.43","R&M - Departmental planned (external)","130220160","18/07/2018","Maintenance Programme","Centralised R&M","R2001"
"Wolverhampton City Council","http://opendatacommunities.org/id/metropolitan-district-council/wolverhampton","708708","William Gough Limited","84729","53.47","R&M - Departmental planned (external)","130219950","18/07/2018","Maintenance Programme","Centralised R&M","R2001"
"Wolverhampton City Council","http://opendatacommunities.org/id/metropolitan-district-council/wolverhampton","708708","William Gough Limited","84678","67.21","R&M - Departmental planned (external)","130219290","18/07/2018","Maintenance Programme","Centralised R&M","R2001"
"Wolverhampton City Council","http://opendatacommunities.org/id/metropolitan-district-council/wolverhampton","708708","William Gough Limited","84594","167.19","R&M - Departmental planned (external)","130216538","18/07/2018","Maintenance Programme","Centralised R&M","R2001"
"Wolverhampton City Council","http://opendatacommunities.org/id/metropolitan-district-council/wolverhampton","708708","William Gough Limited","84622","151.53","R&M - Departmental planned (external)","130217385","13/07/2018","Maintenance Programme","Centralised R&M","R2001"
"Wolverhampton City Council","http://opendatacommunities.org/id/metropolitan-district-council/wolverhampton","708708","William Gough Limited","84677","9,626.73","R&M - Departmental planned (external)","130219289","11/07/2018","Facilities Management","Parkfields Office Accomodation","R2001"
"Wolverhampton City Council","http://opendatacommunities.org/id/metropolitan-district-council/wolverhampton","708708","William Gough Limited","84680","40.00","R&M - Departmental planned (external)","130219292","11/07/2018","Facilities Management","Magistrates","R2001"
"Wolverhampton City Council","http://opendatacommunities.org/id/metropolitan-district-council/wolverhampton","708708","William Gough Limited","84697","40.00","R&M - Departmental planned (external)","130219306","11/07/2018","Maintenance Programme","Centralised R&M","R2001"
"Wolverhampton City Council","http://opendatacommunities.org/id/metropolitan-district-council/wolverhampton","708708","William Gough Limited","84681","359.01","R&M - Departmental planned (external)","130219293","11/07/2018","Facilities Management","Magistrates","R2001"
"Wolverhampton City Council","http://opendatacommunities.org/id/metropolitan-district-council/wolverhampton","708708","William Gough Limited","84698","154.77","R&M - Departmental planned (external)","130219307","11/07/2018","Maintenance Programme","Centralised R&M","R2001"
"Wolverhampton City Council","http://opendatacommunities.org/id/metropolitan-district-council/wolverhampton","708708","William Gough Limited","84699","107.91","R&M - Departmental planned (external)","130219308","11/07/2018","Maintenance Programme","Centralised R&M","R2001"
"Wolverhampton City Council","http://opendatacommunities.org/id/metropolitan-district-council/wolverhampton","708708","William Gough Limited","84221","219.16","R&M - Departmental planned (external)","130213753","13/07/2018","Cleaning","Priory Green","R2001"
"Wolverhampton City Council","http://opendatacommunities.org/id/metropolitan-district-council/wolverhampton","708708","William Gough Limited","84872","3,995.85","R&M - Departmental planned (external)","130221007","25/07/2018","Maintenance Programme","Centralised R&M","R2001"
"Wolverhampton City Council","http://opendatacommunities.org/id/metropolitan-district-council/wolverhampton","708708","William Gough Limited","84861","35,000.00","Construction and Conversion","130220998","25/07/2018","-","Corporate Asset Management","C1100"
"Wolverhampton City Council","http://opendatacommunities.org/id/metropolitan-district-council/wolverhampton","708708","William Gough Limited","84822","58.97","R&M - Departmental planned (external)","130220846","25/07/2018","Estates and Valuations","Industrial Premises ; NEC,Monmore Road","R2001"
"Wolverhampton City Council","http://opendatacommunities.org/id/metropolitan-district-council/wolverhampton","708708","William Gough Limited","84805","318.30","R&M - Departmental planned (external)","130220695","25/07/2018","Estates and Valuations","Industrial Premises ; NEC,Monmore Road","R2001"
"Wolverhampton City Council","http://opendatacommunities.org/id/metropolitan-district-council/wolverhampton","708708","William Gough Limited","84676","40.00","R&M - Departmental planned (external)","130219288","25/07/2018","Facilities Management","Caretakers Community Centre","R2001"
"Wolverhampton City Council","http://opendatacommunities.org/id/metropolitan-district-council/wolverhampton","708708","William Gough Limited","84607","125.69","R&M - Departmental planned (external)","130216733","25/07/2018","Maintenance Programme","Centralised R&M","R2001"
"Wolverhampton City Council","http://opendatacommunities.org/id/metropolitan-district-council/wolverhampton","708708","William Gough Limited","84190","619.65","R&M - Departmental planned (external)","130210772","25/07/2018","Maintenance Programme","Centralised R&M","R2001"
"Wolverhampton City Council","http://opendatacommunities.org/id/metropolitan-district-council/wolverhampton","708708","William Gough Limited","84868","15,500.00","Construction and Conversion","130221003","25/07/2018","-","GF - Cricket provision","C1100"
"Wolverhampton City Council","http://opendatacommunities.org/id/metropolitan-district-council/wolverhampton","708708","William Gough Limited","84812","86.81","R&M - Departmental planned (external)","130220837","25/07/2018","Maintenance Programme","Centralised R&M","R2001"
"Wolverhampton City Council","http://opendatacommunities.org/id/metropolitan-district-council/wolverhampton","708708","William Gough Limited","84808","212.78","R&M - Departmental planned (external)","130220833","25/07/2018","Facilities Management","Parkfields Office Accomodation","R2001"
"Wolverhampton City Council","http://opendatacommunities.org/id/metropolitan-district-council/wolverhampton","708708","William Gough Limited","84866","4,300.14","R&M - Departmental planned (external)","130221001","25/07/2018","Schools","Pupil Referral Units - Braybrook Centre","R2001"
"Wolverhampton City Council","http://opendatacommunities.org/id/metropolitan-district-council/wolverhampton","708708","William Gough Limited","84879","1,002.52","R&M - Departmental planned (external)","130222037","25/07/2018","Markets","Bilston Market and Licensed Operations","R2001"
"Wolverhampton City Council","http://opendatacommunities.org/id/metropolitan-district-council/wolverhampton","708708","William Gough Limited","84806","238.73","R&M - Departmental planned (external)","130220696","25/07/2018","Maintenance Programme","Centralised R&M","R2001"
"Wolverhampton City Council","http://opendatacommunities.org/id/metropolitan-district-council/wolverhampton","708708","William Gough Limited","84832","70.77","R&M - Departmental planned (external)","130220984","25/07/2018","Maintenance Programme","Centralised R&M","R2001"
"Wolverhampton City Council","http://opendatacommunities.org/id/metropolitan-district-council/wolverhampton","708708","William Gough Limited","84820","156.87","R&M - Departmental planned (external)","130220844","25/07/2018","Maintenance Programme","Centralised R&M","R2001"
"Wolverhampton City Council","http://opendatacommunities.org/id/metropolitan-district-council/wolverhampton","708708","William Gough Limited","84614","69.61","R&M - Departmental planned (external)","130216740","06/07/2018","Maintenance Programme","Centralised R&M","R2001"
"Wolverhampton City Council","http://opendatacommunities.org/id/metropolitan-district-council/wolverhampton","708708","William Gough Limited","84781","51.20","R&M - Departmental planned (external)","130220300","23/07/2018","Maintenance Programme","Centralised R&M","R2001"
"Wolverhampton City Council","http://opendatacommunities.org/id/metropolitan-district-council/wolverhampton","708708","William Gough Limited","84290","757.01","R&M - Departmental planned (external)","130222980","23/07/2018","Learning Disability Provider","Learning Disabilities Management","R2001"
"Wolverhampton City Council","http://opendatacommunities.org/id/metropolitan-district-council/wolverhampton","708708","William Gough Limited","84741","91.98","R&M - Departmental planned (external)","130220156","25/07/2018","Maintenance Programme","Centralised R&M","R2001"
"Wolverhampton City Council","http://opendatacommunities.org/id/metropolitan-district-council/wolverhampton","708708","William Gough Limited","84859","15,000.00","Construction and Conversion","130220996","25/07/2018","-","Corporate Asset Management","C1100"
"Wolverhampton City Council","http://opendatacommunities.org/id/metropolitan-district-council/wolverhampton","708708","William Gough Limited","84867","11,000.00","Construction and Conversion","130221002","25/07/2018","-","Corporate Asset Management","C1100"
"Wolverhampton City Council","http://opendatacommunities.org/id/metropolitan-district-council/wolverhampton","708708","William Gough Limited","84779","97.01","R&M - Departmental planned (external)","130220298","25/07/2018","Maintenance Programme","Centralised R&M","R2001"
"Wolverhampton City Council","http://opendatacommunities.org/id/metropolitan-district-council/wolverhampton","708708","William Gough Limited","84748","51.18","R&M - Departmental planned (external)","130220161","25/07/2018","Maintenance Programme","Civic Centre Repairs & Maintenance","R2001"
"Wolverhampton City Council","http://opendatacommunities.org/id/metropolitan-district-council/wolverhampton","708708","William Gough Limited","84813","197.98","R&M - Departmental planned (external)","130220838","25/07/2018","Maintenance Programme","Centralised R&M","R2001"
"Wolverhampton City Council","http://opendatacommunities.org/id/metropolitan-district-council/wolverhampton","708708","William Gough Limited","84807","318.30","R&M - Departmental planned (external)","130220697","25/07/2018","Markets","Wednesfield Street Market","R2001"
"Wolverhampton City Council","http://opendatacommunities.org/id/metropolitan-district-council/wolverhampton","708708","William Gough Limited","84840","40.00","R&M - Departmental planned (external)","130220988","25/07/2018","Markets","Bilston Market and Licensed Operations","R2001"
"Wolverhampton City Council","http://opendatacommunities.org/id/metropolitan-district-council/wolverhampton","708708","William Gough Limited","84851","150.21","R&M - Departmental planned (external)","130220992","25/07/2018","Maintenance Programme","Centralised R&M","R2001"
"Wolverhampton City Council","http://opendatacommunities.org/id/metropolitan-district-council/wolverhampton","708708","William Gough Limited","84091","3,232.42","R&M - Departmental planned (external)","130208554","25/07/2018","Maintenance Programme","Centralised R&M","R2001"
"Wolverhampton City Council","http://opendatacommunities.org/id/metropolitan-district-council/wolverhampton","708708","William Gough Limited","84100","559.48","R&M - Departmental planned (external)","130209452","25/07/2018","Maintenance Programme","Centralised R&M","R2001"
"Wolverhampton City Council","http://opendatacommunities.org/id/metropolitan-district-council/wolverhampton","708708","William Gough Limited","84797","392.38","R&M - Departmental planned (external)","130220690","25/07/2018","Facilities Management","Magistrates","R2001"
"Wolverhampton City Council","http://opendatacommunities.org/id/metropolitan-district-council/wolverhampton","708708","William Gough Limited","84801","260.43","R&M - Departmental planned (external)","130220691","25/07/2018","Maintenance Programme","Centralised R&M","R2001"
"Wolverhampton City Council","http://opendatacommunities.org/id/metropolitan-district-council/wolverhampton","708708","William Gough Limited","84809","83.60","R&M - Departmental planned (external)","130220834","25/07/2018","Maintenance Programme","Centralised R&M","R2001"
"Wolverhampton City Council","http://opendatacommunities.org/id/metropolitan-district-council/wolverhampton","708708","William Gough Limited","84860","25,000.00","Construction and Conversion","130220997","25/07/2018","-","Corporate Asset Management","C1100"
"Wolverhampton City Council","http://opendatacommunities.org/id/metropolitan-district-council/wolverhampton","708708","William Gough Limited","84651","22,680.82","R&M - Departmental planned (external)","130219282","06/07/2018","Corporate Asset Management","Centralised Planned Maintenance","R2001"
"Wolverhampton City Council","http://opendatacommunities.org/id/metropolitan-district-council/wolverhampton","708708","William Gough Limited","84886","1,891.79","R&M - Departmental planned (external)","130221667","27/07/2018","Facilities Management","Caretakers Community Centre","R2001"
"Wolverhampton City Council","http://opendatacommunities.org/id/metropolitan-district-council/wolverhampton","708708","William Gough Limited","84492","40.00","R&M - Departmental planned (external)","130215122","23/07/2018","Maintenance Programme","Centralised R&M","R2001"
"Wolverhampton City Council","http://opendatacommunities.org/id/metropolitan-district-council/wolverhampton","708708","William Gough Limited","83298","317.28","R&M - Departmental planned (external)","130222365","23/07/2018","Maintenance Programme","Centralised R&M","R2001"
"Wolverhampton City Council","http://opendatacommunities.org/id/metropolitan-district-council/wolverhampton","708708","William Gough Limited","84476","40.00","R&M - Departmental planned (external)","130214524","04/07/2018","Maintenance Programme","Centralised R&M","R2001"
"Wolverhampton City Council","http://opendatacommunities.org/id/metropolitan-district-council/wolverhampton","708708","William Gough Limited","84500","193.73","R&M - Departmental planned (external)","130214944","04/07/2018","Maintenance Programme","Centralised R&M","R2001"
"Wolverhampton City Council","http://opendatacommunities.org/id/metropolitan-district-council/wolverhampton","708708","William Gough Limited","84503","51.20","R&M - Departmental planned (external)","130215128","04/07/2018","Maintenance Programme","Centralised R&M","R2001"
"Wolverhampton City Council","http://opendatacommunities.org/id/metropolitan-district-council/wolverhampton","708708","William Gough Limited","82457","849.23","R&M - Departmental planned (external)","130181080","04/07/2018","Maintenance Programme","Centralised R&M","R2001"
"Wolverhampton City Council","http://opendatacommunities.org/id/metropolitan-district-council/wolverhampton","708708","William Gough Limited","84309","148.56","R&M - Departmental planned (external)","130213000","04/07/2018","Maintenance Programme","Centralised R&M","R2001"
"Wolverhampton City Council","http://opendatacommunities.org/id/metropolitan-district-council/wolverhampton","708708","William Gough Limited","84532","40.00","R&M - Departmental planned (external)","130215287","04/07/2018","Maintenance Programme","Centralised R&M","R2001"
"Wolverhampton City Council","http://opendatacommunities.org/id/metropolitan-district-council/wolverhampton","708708","William Gough Limited","C2375","-49.50","R&M - Departmental planned (external)","130209457","04/07/2018","Local Economy","Blakenhall Community & Healthy Living Centre","R2001"
"Wolverhampton City Council","http://opendatacommunities.org/id/metropolitan-district-council/wolverhampton","708708","William Gough Limited","84789","40.00","R&M - Departmental planned (external)","130220305","18/07/2018","Markets","Wednesfield Street Market","R2001"
"Wolverhampton City Council","http://opendatacommunities.org/id/metropolitan-district-council/wolverhampton","708708","William Gough Limited","84788","53.17","R&M - Departmental planned (external)","130220304","18/07/2018","Maintenance Programme","Centralised R&M","R2001"
"Wolverhampton City Council","http://opendatacommunities.org/id/metropolitan-district-council/wolverhampton","708708","William Gough Limited","84764","96.65","R&M - Departmental planned (external)","130220170","18/07/2018","Facilities Management","Magistrates","R2001"
"Wolverhampton City Council","http://opendatacommunities.org/id/metropolitan-district-council/wolverhampton","708708","William Gough Limited","84752","107.67","R&M - Departmental planned (external)","130220164","18/07/2018","Maintenance Programme","Civic Centre Repairs & Maintenance","R2001"
"Wolverhampton City Council","http://opendatacommunities.org/id/metropolitan-district-council/wolverhampton","708708","William Gough Limited","84746","40.00","R&M - Departmental planned (external)","130220159","18/07/2018","Maintenance Programme","Centralised R&M","R2001"
"Wolverhampton City Council","http://opendatacommunities.org/id/metropolitan-district-council/wolverhampton","708708","William Gough Limited","84725","128.01","R&M - Departmental planned (external)","130219947","18/07/2018","Facilities Management","Caretakers Community Centre","R2001"
"Wolverhampton City Council","http://opendatacommunities.org/id/metropolitan-district-council/wolverhampton","708708","William Gough Limited","84743","732.30","R&M - Departmental planned (external)","130219958","18/07/2018","Maintenance Programme","Centralised R&M","R2001"
"Wolverhampton City Council","http://opendatacommunities.org/id/metropolitan-district-council/wolverhampton","708708","William Gough Limited","84712","64.46","R&M - Departmental planned (external)","130219937","18/07/2018","Early Intervention","EIP Locality 1 - Eastfields","R2001"
"Wolverhampton City Council","http://opendatacommunities.org/id/metropolitan-district-council/wolverhampton","708708","William Gough Limited","84738","232.54","R&M - Departmental planned (external)","130219955","18/07/2018","Maintenance Programme","Centralised R&M","R2001"
"Wolverhampton City Council","http://opendatacommunities.org/id/metropolitan-district-council/wolverhampton","708708","William Gough Limited","84717","40.00","R&M - Departmental planned (external)","130219941","18/07/2018","Maintenance Programme","Centralised R&M","R2001"
"Wolverhampton City Council","http://opendatacommunities.org/id/metropolitan-district-council/wolverhampton","708708","William Gough Limited","84780","51.20","R&M - Departmental planned (external)","130220299","18/07/2018","Maintenance Programme","Centralised R&M","R2001"
"Wolverhampton City Council","http://opendatacommunities.org/id/metropolitan-district-council/wolverhampton","708708","William Gough Limited","84642","40.00","R&M - Departmental planned (external)","130217892","13/07/2018","Maintenance Programme","Centralised R&M","R2001"
"Wolverhampton City Council","http://opendatacommunities.org/id/metropolitan-district-council/wolverhampton","708708","William Gough Limited","84736","146.38","R&M - Departmental planned (external)","130220831","18/07/2018","Maintenance Programme","Centralised R&M","R2001"
"Wolverhampton City Council","http://opendatacommunities.org/id/metropolitan-district-council/wolverhampton","708708","William Gough Limited","84705","95.95","R&M - Departmental planned (external)","130219431","11/07/2018","Maintenance Programme","Civic Centre Repairs & Maintenance","R2001"
"Wolverhampton City Council","http://opendatacommunities.org/id/metropolitan-district-council/wolverhampton","708708","William Gough Limited","84685","456.63","R&M - Departmental planned (external)","130219296","11/07/2018","Maintenance Programme","Civic Centre Repairs & Maintenance","R2001"
"Wolverhampton City Council","http://opendatacommunities.org/id/metropolitan-district-council/wolverhampton","708708","William Gough Limited","84682","40.00","R&M - Departmental planned (external)","130219294","11/07/2018","Maintenance Programme","Centralised R&M","R2001"
"Wolverhampton City Council","http://opendatacommunities.org/id/metropolitan-district-council/wolverhampton","708708","William Gough Limited","84679","355.32","R&M - Departmental planned (external)","130219291","11/07/2018","Facilities Management","Caretakers Community Centre","R2001"
"Wolverhampton City Council","http://opendatacommunities.org/id/metropolitan-district-council/wolverhampton","708708","William Gough Limited","84675","236.59","R&M - Departmental planned (external)","130219287","11/07/2018","Early Intervention","EIP Locality 1 - Eastfields","R2001"
"Wolverhampton City Council","http://opendatacommunities.org/id/metropolitan-district-council/wolverhampton","708708","William Gough Limited","84696","655.98","R&M - Departmental planned (external)","130219305","11/07/2018","Maintenance Programme","Centralised R&M","R2001"
"Wolverhampton City Council","http://opendatacommunities.org/id/metropolitan-district-council/wolverhampton","708708","William Gough Limited","84466","434.64","R&M - Departmental planned (external)","130214515","13/07/2018","Markets","Wholesale Market Facilities Management","R2001"
"Wolverhampton City Council","http://opendatacommunities.org/id/metropolitan-district-council/wolverhampton","708708","William Gough Limited","84611","208.68","R&M - Departmental planned (external)","130216737","13/07/2018","Public Service Reform","Local Government Elections","R2001"
"Wolverhampton City Council","http://opendatacommunities.org/id/metropolitan-district-council/wolverhampton","708737","Wmsnt Accessible Transport Ser Limited","7200","2,273.60","Client Transport","130221915","23/07/2018","Special Educational Needs","Special - Transport","R3042"
"Wolverhampton City Council","http://opendatacommunities.org/id/metropolitan-district-council/wolverhampton","708737","Wmsnt Accessible Transport Ser Limited","6654","146.20","Client Transport","130222920","23/07/2018","Learning Disabilities Care Purchasing","LD Care Purchasing (Spot Placements)","R3042"
"Wolverhampton City Council","http://opendatacommunities.org/id/metropolitan-district-council/wolverhampton","708737","Wmsnt Accessible Transport Ser Limited","6763","115.20","Client Transport","130222921","23/07/2018","Learning Disabilities Care Purchasing","LD Care Purchasing (Spot Placements)","R3042"
"Wolverhampton City Council","http://opendatacommunities.org/id/metropolitan-district-council/wolverhampton","708737","Wmsnt Accessible Transport Ser Limited","7201","2,093.42","Client Transport","130221916","23/07/2018","Special Educational Needs","Special - Transport","R3042"
"Wolverhampton City Council","http://opendatacommunities.org/id/metropolitan-district-council/wolverhampton","708737","Wmsnt Accessible Transport Ser Limited","6848","120.00","Client Transport","130222922","23/07/2018","Learning Disabilities Care Purchasing","LD Care Purchasing (Spot Placements)","R3042"
"Wolverhampton City Council","http://opendatacommunities.org/id/metropolitan-district-council/wolverhampton","708737","Wmsnt Accessible Transport Ser Limited","7094","464.10","Client Transport","130222924","23/07/2018","Learning Disabilities Care Purchasing","LD Care Purchasing (Spot Placements)","R3042"
"Wolverhampton City Council","http://opendatacommunities.org/id/metropolitan-district-council/wolverhampton","708737","Wmsnt Accessible Transport Ser Limited","6982","232.80","Client Transport","130222923","23/07/2018","Learning Disabilities Care Purchasing","LD Care Purchasing (Spot Placements)","R3042"
"Wolverhampton City Council","http://opendatacommunities.org/id/metropolitan-district-council/wolverhampton","708749","Wolverhampton & Bilston Athletic Club","WBAC038","300.00","Equipment - Purchase","130220583","11/07/2018","Leisure Services","Aldersley Leisure Village","R4000"
"Wolverhampton City Council","http://opendatacommunities.org/id/metropolitan-district-council/wolverhampton","708749","Wolverhampton & Bilston Athletic Club","WBAC038","399.46","Equipment - Purchase","130220583","11/07/2018","Leisure Services","Aldersley Leisure Village","R4000"
"Wolverhampton City Council","http://opendatacommunities.org/id/metropolitan-district-council/wolverhampton","708749","Wolverhampton & Bilston Athletic Club","WBAC038","3,021.00","Equipment - Purchase","130220583","11/07/2018","Leisure Services","Aldersley Leisure Village","R4000"
"Wolverhampton City Council","http://opendatacommunities.org/id/metropolitan-district-council/wolverhampton","708749","Wolverhampton & Bilston Athletic Club","WBAC038","1,624.70","Equipment - Purchase","130220583","11/07/2018","Leisure Services","Aldersley Leisure Village","R4000"
"Wolverhampton City Council","http://opendatacommunities.org/id/metropolitan-district-council/wolverhampton","708758","West Midlands Pension Fund - Wolverhampton City Council","4600054238/0113","55,723.00","Enhanced Pension","190485077","18/07/2018","Central Corporate Budgets","Local Government Reorganisation","R1301"
"Wolverhampton City Council","http://opendatacommunities.org/id/metropolitan-district-council/wolverhampton","708758","West Midlands Pension Fund - Wolverhampton City Council","4600054238/0001","285,936.24","Enhanced Pension","190485076","18/07/2018","Central Corporate Budgets","Local Government Reorganisation","R1301"
"Wolverhampton City Council","http://opendatacommunities.org/id/metropolitan-district-council/wolverhampton","708758","West Midlands Pension Fund - Wolverhampton City Council","4600054309/1819","26,742.10","Enhanced Pension","190485075","18/07/2018","Central Corporate Budgets","Local Government Reorganisation","R1301"
"Wolverhampton City Council","http://opendatacommunities.org/id/metropolitan-district-council/wolverhampton","708758","West Midlands Pension Fund - Wolverhampton City Council","4600054309/1718","-754.89","Enhanced Pension","190485074","18/07/2018","Central Corporate Budgets","Local Government Reorganisation","R1301"
"Wolverhampton City Council","http://opendatacommunities.org/id/metropolitan-district-council/wolverhampton","708770","Wolverhampton Homes Limited","7 Rosemary Avenue","641.34","No Recourse to Public Funds","190489851","25/07/2018","Child Protection","CIN/CP Social Work Unit - Area 8","R6314"
"Wolverhampton City Council","http://opendatacommunities.org/id/metropolitan-district-council/wolverhampton","708770","Wolverhampton Homes Limited","2600017672","1,806.97","Construction and Conversion","130149913","11/07/2018","-","Adaptations for People with Disabilites","C1100"
"Wolverhampton City Council","http://opendatacommunities.org/id/metropolitan-district-council/wolverhampton","708770","Wolverhampton Homes Limited","Ref 1031789K","824.58","No Recourse to Public Funds","190489169","25/07/2018","Child Protection","CIN/CP Social Work Unit - Area 8","R6314"
"Wolverhampton City Council","http://opendatacommunities.org/id/metropolitan-district-council/wolverhampton","708776","Wolverhampton Radiators","34782","285.00","Equipment - Purchase","190481464","06/07/2018","Fleet Services","Fleet Management","R4000"
"Wolverhampton City Council","http://opendatacommunities.org/id/metropolitan-district-council/wolverhampton","708776","Wolverhampton Radiators","34875","285.00","Equipment - Purchase","190488084","25/07/2018","Fleet Services","Fleet Management","R4000"
"Wolverhampton City Council","http://opendatacommunities.org/id/metropolitan-district-council/wolverhampton","708776","Wolverhampton Radiators","34832","285.00","Equipment - Purchase","190484325","13/07/2018","Fleet Services","Fleet Management","R4000"
"Wolverhampton City Council","http://opendatacommunities.org/id/metropolitan-district-council/wolverhampton","708776","Wolverhampton Radiators","34839","585.00","Equipment - Purchase","190490217","27/07/2018","Fleet Services","Fleet Management","R4000"
"Wolverhampton City Council","http://opendatacommunities.org/id/metropolitan-district-council/wolverhampton","708781","Wolverhampton Science Park Limited/Uow.","K012336","93.00","Training Expenses","130221186","25/07/2018","Audit Services","Health & Safety","R1650"
"Wolverhampton City Council","http://opendatacommunities.org/id/metropolitan-district-council/wolverhampton","708781","Wolverhampton Science Park Limited/Uow.","K012340","90.00","Training Expenses","130221188","25/07/2018","Audit Services","Health & Safety","R1650"
"Wolverhampton City Council","http://opendatacommunities.org/id/metropolitan-district-council/wolverhampton","708781","Wolverhampton Science Park Limited/Uow.","K012339","161.00","Training Expenses","130221187","25/07/2018","Audit Services","Health & Safety","R1650"
"Wolverhampton City Council","http://opendatacommunities.org/id/metropolitan-district-council/wolverhampton","708787","Wolverhampton Travel","171811A","1,846.80","Client Transport","130221398","11/07/2018","Special Educational Needs","Special - Transport","R3042"
"Wolverhampton City Council","http://opendatacommunities.org/id/metropolitan-district-council/wolverhampton","708787","Wolverhampton Travel","171811","1,919.00","Client Transport","130221397","11/07/2018","Special Educational Needs","Special - Transport","R3042"
"Wolverhampton City Council","http://opendatacommunities.org/id/metropolitan-district-council/wolverhampton","708789","Wolverhampton Trophy Centre","7524","2,743.50","Marketing \ Non-staff advertising","130220584","13/07/2018","Corporate Communications","Communications & Marketing - General","R4317"
"Wolverhampton City Council","http://opendatacommunities.org/id/metropolitan-district-council/wolverhampton","708790","Wolverhampton Voluntary Sector Cncl","1751","25,000.00","TPP - Social Care Support Services","130223228","25/07/2018","Skills","Wolverhampton Voluntary Sector Council","R5501"
"Wolverhampton City Council","http://opendatacommunities.org/id/metropolitan-district-council/wolverhampton","708790","Wolverhampton Voluntary Sector Cncl","1750","15,000.00","TPP - Social Care Support Services","130223227","25/07/2018","Skills","Wolverhampton Volunteer Bureau","R5501"
"Wolverhampton City Council","http://opendatacommunities.org/id/metropolitan-district-council/wolverhampton","708790","Wolverhampton Voluntary Sector Cncl","1735","69,875.00","TPP - Social Care Support Services","130223083","23/07/2018","Early Intervention","Transformation Challenge Award","R5501"
"Wolverhampton City Council","http://opendatacommunities.org/id/metropolitan-district-council/wolverhampton","708793","Wolverhampton Waste Services Limited","W43/18","18,212.95","TPP - Other contractors","130221011","25/07/2018","Waste and Recycling Service","Waste Disposal - General","R5099"
"Wolverhampton City Council","http://opendatacommunities.org/id/metropolitan-district-council/wolverhampton","708793","Wolverhampton Waste Services Limited","W41/18","-39,475.00","TPP - Other contractors","130219959","25/07/2018","Waste and Recycling Service","Waste Disposal - General","R5099"
"Wolverhampton City Council","http://opendatacommunities.org/id/metropolitan-district-council/wolverhampton","708793","Wolverhampton Waste Services Limited","W42/18","657,467.04","TPP - Other contractors","130221010","25/07/2018","Waste and Recycling Service","Waste Disposal - General","R5099"
"Wolverhampton City Council","http://opendatacommunities.org/id/metropolitan-district-council/wolverhampton","708794","Wolverhampton West Magazine Limited","INV-7328","319.00","Marketing \ Non-staff advertising","130223458","27/07/2018","Healthy Life Expectancy","Healthy Life Expectancy","R4317"
"Wolverhampton City Council","http://opendatacommunities.org/id/metropolitan-district-council/wolverhampton","708794","Wolverhampton West Magazine Limited","INV-7299","319.00","Marketing \ Non-staff advertising","130220850","13/07/2018","Healthy Life Expectancy","Healthy Life Expectancy","R4317"
"Wolverhampton City Council","http://opendatacommunities.org/id/metropolitan-district-council/wolverhampton","708802","Wolves Community Trust","1287","60.00","Marketing \ Non-staff advertising","130222206","25/07/2018","School Planning & Resources","Pupil & Student Support","R4317"
"Wolverhampton City Council","http://opendatacommunities.org/id/metropolitan-district-council/wolverhampton","708820","Woodstock Farm Boarding Kennels","0961","310.00","Storage","130221189","04/07/2018","Safeguarding","Court of Protection, Funerals and Protection of Property","R4910"
"Wolverhampton City Council","http://opendatacommunities.org/id/metropolitan-district-council/wolverhampton","708820","Woodstock Farm Boarding Kennels","0962","90.00","Storage","130221190","06/07/2018","Safeguarding","Court of Protection, Funerals and Protection of Property","R4910"
"Wolverhampton City Council","http://opendatacommunities.org/id/metropolitan-district-council/wolverhampton","708865","XMA Limited","KK63465","1,050.00","Plant, Equipment, Machinery & Computer Hardware","130221399","25/07/2018","-","ICT Desktop Refresh","C3000"
"Wolverhampton City Council","http://opendatacommunities.org/id/metropolitan-district-council/wolverhampton","708865","XMA Limited","KK22990","14,180.60","Plant, Equipment, Machinery & Computer Hardware","130219058","04/07/2018","-","ICT Desktop Refresh","C3000"
"Wolverhampton City Council","http://opendatacommunities.org/id/metropolitan-district-council/wolverhampton","708865","XMA Limited","KK38112","3,883.00","Computing - Consumables","130220179","13/07/2018","ICTS","Strategic ICTS (ICT Service Budget)","R4532"
"Wolverhampton City Council","http://opendatacommunities.org/id/metropolitan-district-council/wolverhampton","708865","XMA Limited","KK49738","61,786.90","Plant, Equipment, Machinery & Computer Hardware","130220432","18/07/2018","-","ICT Desktop Refresh","C3000"
"Wolverhampton City Council","http://opendatacommunities.org/id/metropolitan-district-council/wolverhampton","708865","XMA Limited","KK40316","3,510.00","Computing - Consumables","130220180","13/07/2018","ICTS","Strategic ICTS (ICT Service Budget)","R4532"
"Wolverhampton City Council","http://opendatacommunities.org/id/metropolitan-district-council/wolverhampton","708865","XMA Limited","KK63945","196.00","Plant, Equipment, Machinery & Computer Hardware","130221400","25/07/2018","-","ICT Desktop Refresh","C3000"
"Wolverhampton City Council","http://opendatacommunities.org/id/metropolitan-district-council/wolverhampton","708865","XMA Limited","KK52780","14,180.60","Plant, Equipment, Machinery & Computer Hardware","130220585","23/07/2018","-","ICT Desktop Refresh","C3000"
"Wolverhampton City Council","http://opendatacommunities.org/id/metropolitan-district-council/wolverhampton","708867","Xpress Software Solutions Limited","2018424","369.67","Training Expenses","130219313","04/07/2018","Public Service Reform","Electoral Registration","R1650"
"Wolverhampton City Council","http://opendatacommunities.org/id/metropolitan-district-council/wolverhampton","708886","Ymca City Tots","TFT Summer 2018 Inst 2","5,329.08","TPP - Private Nursery Education Funding","190489836","25/07/2018","Early Years","Early Years Entitlement Funding for Disadvantaged 2 Year Olds","R5035"
"Wolverhampton City Council","http://opendatacommunities.org/id/metropolitan-district-council/wolverhampton","708886","Ymca City Tots","6901","420.00","TPP - Child Care provided for client","130222930","27/07/2018","Adult Education","Discretionary Fund","R5034"
"Wolverhampton City Council","http://opendatacommunities.org/id/metropolitan-district-council/wolverhampton","708886","Ymca City Tots","Enhanced Funding Summer 2018 S Bob Ntumba","1,000.00","TPP - Private Nursery Education Funding","190482547","11/07/2018","Early Years","Early Years SEN Inclusion Fund","R5035"
"Wolverhampton City Council","http://opendatacommunities.org/id/metropolitan-district-council/wolverhampton","708886","Ymca City Tots","6896","105.00","TPP - Child Care provided for client","130220851","04/07/2018","Adult Education","Discretionary Fund","R5034"
"Wolverhampton City Council","http://opendatacommunities.org/id/metropolitan-district-council/wolverhampton","708886","Ymca City Tots","NEF Summer 2018 INST 2","10,595.25","TPP - Private Nursery Education Funding","190489824","25/07/2018","Early Years","Early Years Universal Entitlement for 3 and 4 Year Olds","R5035"
"Wolverhampton City Council","http://opendatacommunities.org/id/metropolitan-district-council/wolverhampton","708886","Ymca City Tots","6899","420.00","TPP - Child Care provided for client","130222928","27/07/2018","Adult Education","Discretionary Fund","R5034"
"Wolverhampton City Council","http://opendatacommunities.org/id/metropolitan-district-council/wolverhampton","708886","Ymca City Tots","EYPP Summer 2018","954.00","TPP - Private Nursery Education Funding","190489844","25/07/2018","Early Years","Early Years Pupil Premium","R5035"
"Wolverhampton City Council","http://opendatacommunities.org/id/metropolitan-district-council/wolverhampton","708886","Ymca City Tots","6900","140.00","TPP - Child Care provided for client","130222929","25/07/2018","Adult Education","Discretionary Fund","R5034"
"Wolverhampton City Council","http://opendatacommunities.org/id/metropolitan-district-council/wolverhampton","708896","Young Ones Nursery","NEF Summer 2018 INST 2","28,042.35","TPP - Private Nursery Education Funding","190489824","25/07/2018","Early Years","Early Years Universal Entitlement for 3 and 4 Year Olds","R5035"
"Wolverhampton City Council","http://opendatacommunities.org/id/metropolitan-district-council/wolverhampton","708904","Youth Justice Board England & Wales","P179602 29071820180720","4,202.00","TPP - Residential Care - Long Term","190488129","25/07/2018","Looked After Children","Remand / Secure Accommodation","R5400"
"Wolverhampton City Council","http://opendatacommunities.org/id/metropolitan-district-council/wolverhampton","708931","Zurich Insurance PLC","Dovcotes TMO JHA-2720342013 invoice 272034","14,323.88","Insurance - General","190481167","06/07/2018","Audit Services","Insurance Services","R4962"
"Wolverhampton City Council","http://opendatacommunities.org/id/metropolitan-district-council/wolverhampton","708978","2Simple Software Limited","432556","1,425.00","Computing - Purchase of Software","130220586","11/07/2018","School Planning & Resources","Learning Technologies","R4531"
"Wolverhampton City Council","http://opendatacommunities.org/id/metropolitan-district-council/wolverhampton","708985","A Hopton","00031","960.00","TPP - Maintenance Contractor - General","190480898","04/07/2018","Transportation","Cycling Schemes - Bikeability","R5720"
"Wolverhampton City Council","http://opendatacommunities.org/id/metropolitan-district-council/wolverhampton","708985","A Hopton","00032","640.00","TPP - Maintenance Contractor - General","190489862","25/07/2018","Transportation","Cycling Schemes - Bikeability","R5720"
"Wolverhampton City Council","http://opendatacommunities.org/id/metropolitan-district-council/wolverhampton","709298","C Hopkins","00043","1,715.00","TPP - Maintenance Contractor - General","190480901","04/07/2018","Transportation","Cycling Schemes - Bikeability","R5720"
"Wolverhampton City Council","http://opendatacommunities.org/id/metropolitan-district-council/wolverhampton","709298","C Hopkins","00044","895.00","TPP - Maintenance Contractor - General","190489865","25/07/2018","Transportation","Cycling Schemes - Bikeability","R5720"
"Wolverhampton City Council","http://opendatacommunities.org/id/metropolitan-district-council/wolverhampton","709440","A Lawson(Dudley School Of Motoring)","320","140.00","Services - Professional Fees","190480841","04/07/2018","Fleet Services","Fleet Management","R4400"
"Wolverhampton City Council","http://opendatacommunities.org/id/metropolitan-district-council/wolverhampton","709704","A.B.C.- Countdown Cars Limited","5194","476.00","Client Transport","130221919","11/07/2018","Specialist Support","Upper Pendeford Farm Short Breaks Centre","R3042"
"Wolverhampton City Council","http://opendatacommunities.org/id/metropolitan-district-council/wolverhampton","709704","A.B.C.- Countdown Cars Limited","5180","837.00","TPP - Alternative Provision of Education","130221917","13/07/2018","Specialist Support","Alternative Provision","R5037"
"Wolverhampton City Council","http://opendatacommunities.org/id/metropolitan-district-council/wolverhampton","709729","Enoch Evans Llp","10163038","175.00","Services - Professional Fees","130222931","25/07/2018","Legal Services","Centralised External Legal Costs","R4400"
"Wolverhampton City Council","http://opendatacommunities.org/id/metropolitan-district-council/wolverhampton","710089","ABC Early Learning & Childcare Cent","TFT Summer 2018 Inst 2","13,706.79","TPP - Private Nursery Education Funding","190489836","25/07/2018","Early Years","Early Years Entitlement Funding for Disadvantaged 2 Year Olds","R5035"
"Wolverhampton City Council","http://opendatacommunities.org/id/metropolitan-district-council/wolverhampton","710089","ABC Early Learning & Childcare Cent","NEF Summer 2018 INST 2","73,182.81","TPP - Private Nursery Education Funding","190489824","25/07/2018","Early Years","Early Years Universal Entitlement for 3 and 4 Year Olds","R5035"
"Wolverhampton City Council","http://opendatacommunities.org/id/metropolitan-district-council/wolverhampton","710089","ABC Early Learning & Childcare Cent","EYPP Summer 2018","858.60","TPP - Private Nursery Education Funding","190489844","25/07/2018","Early Years","Early Years Pupil Premium","R5035"
"Wolverhampton City Council","http://opendatacommunities.org/id/metropolitan-district-council/wolverhampton","710122","ABC Teachers Limited","85837","1,369.00","Agency Staff","130221566","06/07/2018","Schools","The King�s Church of England School","R1100"
"Wolverhampton City Council","http://opendatacommunities.org/id/metropolitan-district-council/wolverhampton","710122","ABC Teachers Limited","83061","780.00","Agency Staff","130221565","06/07/2018","Schools","The King�s Church of England School","R1100"
"Wolverhampton City Council","http://opendatacommunities.org/id/metropolitan-district-council/wolverhampton","710375","Access Hire Nationwide Limited","73659","1,218.00","Hire of Vehicles","190486271","23/07/2018","Fleet Services","Fleet Management","R3200"
"Wolverhampton City Council","http://opendatacommunities.org/id/metropolitan-district-council/wolverhampton","710375","Access Hire Nationwide Limited","73658","1,239.00","Hire of Vehicles","190486270","23/07/2018","Fleet Services","Fleet Management","R3200"
"Wolverhampton City Council","http://opendatacommunities.org/id/metropolitan-district-council/wolverhampton","710375","Access Hire Nationwide Limited","71751","360.00","Provisions (Resale)","130222565","25/07/2018","Highways Maintenance","Planned Highways Maintenance","R4102"
"Wolverhampton City Council","http://opendatacommunities.org/id/metropolitan-district-council/wolverhampton","710375","Access Hire Nationwide Limited","73657","1,239.00","Hire of Vehicles","190486269","23/07/2018","Fleet Services","Fleet Management","R3200"
"Wolverhampton City Council","http://opendatacommunities.org/id/metropolitan-district-council/wolverhampton","710375","Access Hire Nationwide Limited","73660","1,218.00","Hire of Vehicles","190486272","23/07/2018","Fleet Services","Fleet Management","R3200"
"Wolverhampton City Council","http://opendatacommunities.org/id/metropolitan-district-council/wolverhampton","710479","EON","115390","569.50","Materials","130219964","18/07/2018","Street Lighting","Street Lighting Maintenance","R4007"
"Wolverhampton City Council","http://opendatacommunities.org/id/metropolitan-district-council/wolverhampton","710507","Assoc.Board Royal Schools Of Music","B18/68163(THEORY)","138.00","Exam Expenses (Non-Employee)","130223233","23/07/2018","School Planning & Resources","Music Support Team","R4630"
"Wolverhampton City Council","http://opendatacommunities.org/id/metropolitan-district-council/wolverhampton","710567","NHS Wolverhampton CCG","7020500552","2,296.00","TPP - Residential Care - Long Term","130220588","04/07/2018","Mental Health Assesment & Care Management","MH Care Purchasing (Spot Placements)","R5400"
"Wolverhampton City Council","http://opendatacommunities.org/id/metropolitan-district-council/wolverhampton","710567","NHS Wolverhampton CCG","7020500566","13,541.88","TPP - Public Health Contracts","130220436","11/07/2018","Healthy Life Expectancy","Alcohol and Drug","R5060"
"Wolverhampton City Council","http://opendatacommunities.org/id/metropolitan-district-council/wolverhampton","710567","NHS Wolverhampton CCG","7020500563","9,577.91","TPP - Public Health Contracts","130220433","11/07/2018","Starting and Developing Well","Sexual Health","R5060"
"Wolverhampton City Council","http://opendatacommunities.org/id/metropolitan-district-council/wolverhampton","710567","NHS Wolverhampton CCG","7020500564","4,620.39","TPP - Public Health Contracts","130220434","11/07/2018","Starting and Developing Well","Sexual Health","R5060"
"Wolverhampton City Council","http://opendatacommunities.org/id/metropolitan-district-council/wolverhampton","710567","NHS Wolverhampton CCG","7020500567","1,060.59","TPP - Public Health Contracts","130220437","11/07/2018","Healthy Life Expectancy","Alcohol and Drug","R5060"
"Wolverhampton City Council","http://opendatacommunities.org/id/metropolitan-district-council/wolverhampton","710567","NHS Wolverhampton CCG","7020500565","27,431.59","TPP - Public Health Contracts","130220435","11/07/2018","Healthy Life Expectancy","Healthy Lifestyles","R5060"
"Wolverhampton City Council","http://opendatacommunities.org/id/metropolitan-district-council/wolverhampton","710572","Number 10 Interim","4434","1,900.00","Agency Staff","130223836","27/07/2018","Corporate Communications","Insight and Performance","R1100"
"Wolverhampton City Council","http://opendatacommunities.org/id/metropolitan-district-council/wolverhampton","710572","Number 10 Interim","4881","1,650.00","Agency Staff","130223835","27/07/2018","Corporate Communications","Insight and Performance","R1100"
"Wolverhampton City Council","http://opendatacommunities.org/id/metropolitan-district-council/wolverhampton","710572","Number 10 Interim","4817","1,100.00","Agency Staff","130223830","27/07/2018","Corporate Communications","Insight and Performance","R1100"
"Wolverhampton City Council","http://opendatacommunities.org/id/metropolitan-district-council/wolverhampton","710572","Number 10 Interim","4822","1,650.00","Agency Staff","130223831","27/07/2018","Corporate Communications","Insight and Performance","R1100"
"Wolverhampton City Council","http://opendatacommunities.org/id/metropolitan-district-council/wolverhampton","710572","Number 10 Interim","4839","1,100.00","Agency Staff","130223833","27/07/2018","Corporate Communications","Insight and Performance","R1100"
"Wolverhampton City Council","http://opendatacommunities.org/id/metropolitan-district-council/wolverhampton","710572","Number 10 Interim","4889","2,200.00","Agency Staff","130223837","27/07/2018","Corporate Communications","Insight and Performance","R1100"
"Wolverhampton City Council","http://opendatacommunities.org/id/metropolitan-district-council/wolverhampton","710572","Number 10 Interim","4829","1,650.00","Agency Staff","130223832","27/07/2018","Corporate Communications","Insight and Performance","R1100"
"Wolverhampton City Council","http://opendatacommunities.org/id/metropolitan-district-council/wolverhampton","710572","Number 10 Interim","4549","3,025.00","Agency Staff","130223655","27/07/2018","Corporate Communications","Insight and Performance","R1100"
"Wolverhampton City Council","http://opendatacommunities.org/id/metropolitan-district-council/wolverhampton","710572","Number 10 Interim","4679","2,750.00","Agency Staff","130223829","27/07/2018","Corporate Communications","Insight and Performance","R1100"
"Wolverhampton City Council","http://opendatacommunities.org/id/metropolitan-district-council/wolverhampton","710572","Number 10 Interim","4898","1,925.00","Agency Staff","130223838","27/07/2018","Corporate Communications","Insight and Performance","R1100"
"Wolverhampton City Council","http://opendatacommunities.org/id/metropolitan-district-council/wolverhampton","710572","Number 10 Interim","4852","1,650.00","Agency Staff","130223834","27/07/2018","Corporate Communications","Insight and Performance","R1100"
"Wolverhampton City Council","http://opendatacommunities.org/id/metropolitan-district-council/wolverhampton","710573","Western Power Distribution (West Mids) t/a Western Power Distribution","KP00144169","420.54","TPP - Maintenance on Other Roads","130221016","25/07/2018","Street Lighting","Signs Illuminated","R5710"
"Wolverhampton City Council","http://opendatacommunities.org/id/metropolitan-district-council/wolverhampton","710573","Western Power Distribution (West Mids) t/a Western Power Distribution","KP00144302","681.23","TPP - Maintenance on Other Roads","130221022","25/07/2018","Street Lighting","Street Lighting Maintenance","R5710"
"Wolverhampton City Council","http://opendatacommunities.org/id/metropolitan-district-council/wolverhampton","710573","Western Power Distribution (West Mids) t/a Western Power Distribution","KP00144211","681.23","TPP - Maintenance on Other Roads","130221017","25/07/2018","Street Lighting","Street Lighting Maintenance","R5710"
"Wolverhampton City Council","http://opendatacommunities.org/id/metropolitan-district-council/wolverhampton","710573","Western Power Distribution (West Mids) t/a Western Power Distribution","KP00144063","681.23","TPP - Maintenance on Other Roads","130220188","25/07/2018","Street Lighting","Street Lighting Maintenance","R5710"
"Wolverhampton City Council","http://opendatacommunities.org/id/metropolitan-district-council/wolverhampton","710573","Western Power Distribution (West Mids) t/a Western Power Distribution","KP00143691","681.23","TPP - Maintenance on Other Roads","130220183","25/07/2018","Street Lighting","Street Lighting Maintenance","R5710"
"Wolverhampton City Council","http://opendatacommunities.org/id/metropolitan-district-council/wolverhampton","710573","Western Power Distribution (West Mids) t/a Western Power Distribution","KP00144300","681.23","TPP - Maintenance on Other Roads","130221020","25/07/2018","Street Lighting","Street Lighting Maintenance","R5710"
"Wolverhampton City Council","http://opendatacommunities.org/id/metropolitan-district-council/wolverhampton","710573","Western Power Distribution (West Mids) t/a Western Power Distribution","KP00144167","681.23","TPP - Maintenance on Other Roads","130221015","25/07/2018","Street Lighting","Street Lighting Maintenance","R5710"
"Wolverhampton City Council","http://opendatacommunities.org/id/metropolitan-district-council/wolverhampton","710573","Western Power Distribution (West Mids) t/a Western Power Distribution","KP00144321","557.19","TPP - Maintenance on Other Roads","130221023","25/07/2018","Street Lighting","Street Lighting Maintenance","R5710"
"Wolverhampton City Council","http://opendatacommunities.org/id/metropolitan-district-council/wolverhampton","710573","Western Power Distribution (West Mids) t/a Western Power Distribution","KP00143900","681.23","TPP - Maintenance on Other Roads","130220187","25/07/2018","Street Lighting","Street Lighting Maintenance","R5710"
"Wolverhampton City Council","http://opendatacommunities.org/id/metropolitan-district-council/wolverhampton","710573","Western Power Distribution (West Mids) t/a Western Power Distribution","KP00143707","681.23","TPP - Maintenance on Other Roads","130220185","25/07/2018","Street Lighting","Street Lighting Maintenance","R5710"
"Wolverhampton City Council","http://opendatacommunities.org/id/metropolitan-district-council/wolverhampton","710573","Western Power Distribution (West Mids) t/a Western Power Distribution","KP00144165","681.23","TPP - Maintenance on Other Roads","130221013","25/07/2018","Street Lighting","Street Lighting Maintenance","R5710"
"Wolverhampton City Council","http://opendatacommunities.org/id/metropolitan-district-council/wolverhampton","710573","Western Power Distribution (West Mids) t/a Western Power Distribution","KP00144301","557.19","TPP - Maintenance on Other Roads","130221021","25/07/2018","Street Lighting","Street Lighting Maintenance","R5710"
"Wolverhampton City Council","http://opendatacommunities.org/id/metropolitan-district-council/wolverhampton","710573","Western Power Distribution (West Mids) t/a Western Power Distribution","KP00144282","681.23","TPP - Maintenance on Other Roads","130221019","25/07/2018","Street Lighting","Street Lighting Maintenance","R5710"
"Wolverhampton City Council","http://opendatacommunities.org/id/metropolitan-district-council/wolverhampton","710573","Western Power Distribution (West Mids) t/a Western Power Distribution","KP00144281","681.23","TPP - Maintenance on Other Roads","130221018","25/07/2018","Street Lighting","Street Lighting Maintenance","R5710"
"Wolverhampton City Council","http://opendatacommunities.org/id/metropolitan-district-council/wolverhampton","710573","Western Power Distribution (West Mids) t/a Western Power Distribution","KP00144153","681.23","TPP - Maintenance on Other Roads","130221012","25/07/2018","Street Lighting","Street Lighting Maintenance","R5710"
"Wolverhampton City Council","http://opendatacommunities.org/id/metropolitan-district-council/wolverhampton","710573","Western Power Distribution (West Mids) t/a Western Power Distribution","KP00143692","681.23","TPP - Maintenance on Other Roads","130220184","25/07/2018","Street Lighting","Street Lighting Maintenance","R5710"
"Wolverhampton City Council","http://opendatacommunities.org/id/metropolitan-district-council/wolverhampton","710573","Western Power Distribution (West Mids) t/a Western Power Distribution","KP00144166","557.19","TPP - Maintenance on Other Roads","130221014","25/07/2018","Street Lighting","Street Lighting Maintenance","R5710"
"Wolverhampton City Council","http://opendatacommunities.org/id/metropolitan-district-council/wolverhampton","710573","Western Power Distribution (West Mids) t/a Western Power Distribution","KP00143656","681.23","TPP - Maintenance on Other Roads","130220182","04/07/2018","Street Lighting","Street Lighting Maintenance","R5710"
"Wolverhampton City Council","http://opendatacommunities.org/id/metropolitan-district-council/wolverhampton","710600","E H Smith Builders Merchant LTD","LEI180312","1,627.00","Materials","130219136","04/07/2018","Highways Maintenance","Patching","R4007"
"Wolverhampton City Council","http://opendatacommunities.org/id/metropolitan-district-council/wolverhampton","710600","E H Smith Builders Merchant LTD","CAI977207","956.00","Materials","130220438","18/07/2018","Highways Maintenance","Patching","R4007"
"Wolverhampton City Council","http://opendatacommunities.org/id/metropolitan-district-council/wolverhampton","710600","E H Smith Builders Merchant LTD","CAI976362","462.45","Materials","130219314","06/07/2018","Highways Maintenance","Patching","R4007"
"Wolverhampton City Council","http://opendatacommunities.org/id/metropolitan-district-council/wolverhampton","710600","E H Smith Builders Merchant LTD","CAI976496","182.00","Materials","130219315","11/07/2018","Highways Maintenance","Patching","R4007"
"Wolverhampton City Council","http://opendatacommunities.org/id/metropolitan-district-council/wolverhampton","710620","ARCO Central LTD","933336185","87.60","Equipment - Purchase","190484329","13/07/2018","Fleet Services","Fleet Management","R4000"
"Wolverhampton City Council","http://opendatacommunities.org/id/metropolitan-district-council/wolverhampton","710620","ARCO Central LTD","933336185","65.16","Equipment - Purchase","190484329","13/07/2018","Fleet Services","Fleet Management","R4000"
"Wolverhampton City Council","http://opendatacommunities.org/id/metropolitan-district-council/wolverhampton","710620","ARCO Central LTD","933383368","138.72","Equipment - Purchase","190488092","25/07/2018","Fleet Services","Fleet Management","R4000"
"Wolverhampton City Council","http://opendatacommunities.org/id/metropolitan-district-council/wolverhampton","710640","Turner & Townsend Project Management LTD","000824385","1,440.00","External Professional Fees","130221191","25/07/2018","-","GF - Interchange - Ph2 Train Station/MSCP/Metro Extension","C6002"
"Wolverhampton City Council","http://opendatacommunities.org/id/metropolitan-district-council/wolverhampton","710644","RSA Academy","512948","3,783.33","TPP - Alternative Provision of Education","130223234","23/07/2018","Special Educational Needs","SEN Education OOC","R5037"
"Wolverhampton City Council","http://opendatacommunities.org/id/metropolitan-district-council/wolverhampton","710664","NonStop Recruitment LTD","148538","1,312.50","Agency Staff","130219965","18/07/2018","Child Protection","CIN/CP Social Work Unit - Area 1","R1100"
"Wolverhampton City Council","http://opendatacommunities.org/id/metropolitan-district-council/wolverhampton","710745","Medequip Assistive Technology Ltd","41552","897.50","Equipment - R & M","130218645","27/07/2018","Maintenance Programme","Asset Management Team","R4003"
"Wolverhampton City Council","http://opendatacommunities.org/id/metropolitan-district-council/wolverhampton","710745","Medequip Assistive Technology Ltd","41302","738.50","Equipment - R & M","130218644","27/07/2018","Maintenance Programme","Asset Management Team","R4003"
"Wolverhampton City Council","http://opendatacommunities.org/id/metropolitan-district-council/wolverhampton","710756","Phoenix Software Ltd","OP/I822296","371.02","Computing - Licences","130220852","25/07/2018","School Planning & Resources","Technical Support","R4535"
"Wolverhampton City Council","http://opendatacommunities.org/id/metropolitan-district-council/wolverhampton","710756","Phoenix Software Ltd","OP/I822405","163,052.37","Computing - Licences","130221026","25/07/2018","School Planning & Resources","Technical Support","R4535"
"Wolverhampton City Council","http://opendatacommunities.org/id/metropolitan-district-council/wolverhampton","710780","Wilson & Scott (Highways) LTD","27397","1,775.38","TPP - Maintenance on Principal Roads","130221503","25/07/2018","Highways Maintenance","Road Markings","R5700"
"Wolverhampton City Council","http://opendatacommunities.org/id/metropolitan-district-council/wolverhampton","710780","Wilson & Scott (Highways) LTD","27284","2,149.25","TPP - Maintenance on Principal Roads","130220307","18/07/2018","Highways Maintenance","Road Markings","R5700"
"Wolverhampton City Council","http://opendatacommunities.org/id/metropolitan-district-council/wolverhampton","710780","Wilson & Scott (Highways) LTD","27398","1,155.50","Construction and Conversion","130221504","25/07/2018","-","Safety Programme","C1100"
"Wolverhampton City Council","http://opendatacommunities.org/id/metropolitan-district-council/wolverhampton","710780","Wilson & Scott (Highways) LTD","27285","845.01","Construction and Conversion","130220308","18/07/2018","-","Safety Programme","C1100"
"Wolverhampton City Council","http://opendatacommunities.org/id/metropolitan-district-council/wolverhampton","710780","Wilson & Scott (Highways) LTD","27286","791.77","TPP - Maintenance on Principal Roads","130220309","18/07/2018","Highways Maintenance","Road Markings","R5700"
"Wolverhampton City Council","http://opendatacommunities.org/id/metropolitan-district-council/wolverhampton","710786","St Judes C of E Primary Academy","St Judes CE Academy Early Years Payment Autumn Term Initerim 2018-19","18,887.72","Grant Payments","190484582","13/07/2018","Central Education","Academy Early years","R4700"
"Wolverhampton City Council","http://opendatacommunities.org/id/metropolitan-district-council/wolverhampton","710786","St Judes C of E Primary Academy","St Judes CE Academy Early Years Payment Summer Term 2018-19","56,582.10","Grant Payments","190484558","13/07/2018","Central Education","Academy Early years","R4700"
"Wolverhampton City Council","http://opendatacommunities.org/id/metropolitan-district-council/wolverhampton","710786","St Judes C of E Primary Academy","EYPP Summer 2018","477.00","TPP - Private Nursery Education Funding","190489844","25/07/2018","Early Years","Early Years Pupil Premium","R5035"
"Wolverhampton City Council","http://opendatacommunities.org/id/metropolitan-district-council/wolverhampton","710786","St Judes C of E Primary Academy","TFT Summer 2018 Inst 2","6,288.00","TPP - Private Nursery Education Funding","190489836","25/07/2018","Early Years","Early Years Entitlement Funding for Disadvantaged 2 Year Olds","R5035"
"Wolverhampton City Council","http://opendatacommunities.org/id/metropolitan-district-council/wolverhampton","710786","St Judes C of E Primary Academy","DAF St Judes","615.00","TPP - Private Nursery Education Funding","190482555","11/07/2018","Early Years","Early Years Disability Access Fund (DAF)","R5035"
"Wolverhampton City Council","http://opendatacommunities.org/id/metropolitan-district-council/wolverhampton","710828","Andrew Page","061467972","39.42","Equipment - Purchase","190480831","04/07/2018","Fleet Services","Fleet Management","R4000"
"Wolverhampton City Council","http://opendatacommunities.org/id/metropolitan-district-council/wolverhampton","710828","Andrew Page","061474482","10.23","Equipment - Purchase","190488076","25/07/2018","Fleet Services","Fleet Management","R4000"
"Wolverhampton City Council","http://opendatacommunities.org/id/metropolitan-district-council/wolverhampton","710828","Andrew Page","061473641","64.83","Equipment - Purchase","190488073","25/07/2018","Fleet Services","Fleet Management","R4000"
"Wolverhampton City Council","http://opendatacommunities.org/id/metropolitan-district-council/wolverhampton","710828","Andrew Page","061472535","39.28","Equipment - Purchase","190490182","27/07/2018","Fleet Services","Fleet Management","R4000"
"Wolverhampton City Council","http://opendatacommunities.org/id/metropolitan-district-council/wolverhampton","710828","Andrew Page","061472563","14.05","Equipment - Purchase","190490184","27/07/2018","Fleet Services","Fleet Management","R4000"
"Wolverhampton City Council","http://opendatacommunities.org/id/metropolitan-district-council/wolverhampton","710828","Andrew Page","061475052","1.76","Equipment - Purchase","190490191","27/07/2018","Fleet Services","Fleet Management","R4000"
"Wolverhampton City Council","http://opendatacommunities.org/id/metropolitan-district-council/wolverhampton","710828","Andrew Page","061475052","0.96","Equipment - Purchase","190490191","27/07/2018","Fleet Services","Fleet Management","R4000"
"Wolverhampton City Council","http://opendatacommunities.org/id/metropolitan-district-council/wolverhampton","710828","Andrew Page","061469228","47.88","Equipment - Purchase","190481452","06/07/2018","Fleet Services","Fleet Management","R4000"
"Wolverhampton City Council","http://opendatacommunities.org/id/metropolitan-district-council/wolverhampton","710828","Andrew Page","061467051","80.62","Equipment - Purchase","190481447","06/07/2018","Fleet Services","Fleet Management","R4000"
"Wolverhampton City Council","http://opendatacommunities.org/id/metropolitan-district-council/wolverhampton","710828","Andrew Page","061472065","130.00","Equipment - Purchase","190484319","13/07/2018","Fleet Services","Fleet Management","R4000"
"Wolverhampton City Council","http://opendatacommunities.org/id/metropolitan-district-council/wolverhampton","710828","Andrew Page","061471084","47.88","Equipment - Purchase","190484317","13/07/2018","Fleet Services","Fleet Management","R4000"
"Wolverhampton City Council","http://opendatacommunities.org/id/metropolitan-district-council/wolverhampton","710828","Andrew Page","061469999","15.62","Equipment - Purchase","190486214","23/07/2018","Fleet Services","Fleet Management","R4000"
"Wolverhampton City Council","http://opendatacommunities.org/id/metropolitan-district-council/wolverhampton","710828","Andrew Page","061474478","31.78","Equipment - Purchase","190488074","25/07/2018","Fleet Services","Fleet Management","R4000"
"Wolverhampton City Council","http://opendatacommunities.org/id/metropolitan-district-council/wolverhampton","710828","Andrew Page","061474901","3.36","Equipment - Purchase","190488077","25/07/2018","Fleet Services","Fleet Management","R4000"
"Wolverhampton City Council","http://opendatacommunities.org/id/metropolitan-district-council/wolverhampton","710828","Andrew Page","061467969","16.43","Equipment - Purchase","190480828","04/07/2018","Fleet Services","Fleet Management","R4000"
"Wolverhampton City Council","http://opendatacommunities.org/id/metropolitan-district-council/wolverhampton","710828","Andrew Page","061465604","114.00","Equipment - Purchase","190480825","04/07/2018","Fleet Services","Fleet Management","R4000"
"Wolverhampton City Council","http://opendatacommunities.org/id/metropolitan-district-council/wolverhampton","710828","Andrew Page","061467151","85.31","Equipment - Purchase","190481449","06/07/2018","Fleet Services","Fleet Management","R4000"
"Wolverhampton City Council","http://opendatacommunities.org/id/metropolitan-district-council/wolverhampton","710828","Andrew Page","061467116","46.51","Equipment - Purchase","190481448","06/07/2018","Fleet Services","Fleet Management","R4000"
"Wolverhampton City Council","http://opendatacommunities.org/id/metropolitan-district-council/wolverhampton","710828","Andrew Page","061467116","3.78","Equipment - Purchase","190481448","06/07/2018","Fleet Services","Fleet Management","R4000"
"Wolverhampton City Council","http://opendatacommunities.org/id/metropolitan-district-council/wolverhampton","710828","Andrew Page","061472536","39.28","Equipment - Purchase","190490183","27/07/2018","Fleet Services","Fleet Management","R4000"
"Wolverhampton City Council","http://opendatacommunities.org/id/metropolitan-district-council/wolverhampton","710828","Andrew Page","061472615","7.00","Equipment - Purchase","190490185","27/07/2018","Fleet Services","Fleet Management","R4000"
"Wolverhampton City Council","http://opendatacommunities.org/id/metropolitan-district-council/wolverhampton","710828","Andrew Page","061474468","76.44","Equipment - Purchase","190490187","27/07/2018","Fleet Services","Fleet Management","R4000"
"Wolverhampton City Council","http://opendatacommunities.org/id/metropolitan-district-council/wolverhampton","710828","Andrew Page","H342058","-56.39","Equipment - Purchase","190490251","27/07/2018","Fleet Services","Fleet Management","R4000"
"Wolverhampton City Council","http://opendatacommunities.org/id/metropolitan-district-council/wolverhampton","710828","Andrew Page","061471740","24.70","Equipment - Purchase","190484318","13/07/2018","Fleet Services","Fleet Management","R4000"
"Wolverhampton City Council","http://opendatacommunities.org/id/metropolitan-district-council/wolverhampton","710828","Andrew Page","061470194","15.62","Equipment - Purchase","190486215","23/07/2018","Fleet Services","Fleet Management","R4000"
"Wolverhampton City Council","http://opendatacommunities.org/id/metropolitan-district-council/wolverhampton","710828","Andrew Page","061467970","37.53","Equipment - Purchase","190480829","04/07/2018","Fleet Services","Fleet Management","R4000"
"Wolverhampton City Council","http://opendatacommunities.org/id/metropolitan-district-council/wolverhampton","710828","Andrew Page","061468537","11.76","Equipment - Purchase","190480832","04/07/2018","Fleet Services","Fleet Management","R4000"
"Wolverhampton City Council","http://opendatacommunities.org/id/metropolitan-district-council/wolverhampton","710828","Andrew Page","061473505","60.45","Equipment - Purchase","190488071","25/07/2018","Fleet Services","Fleet Management","R4000"
"Wolverhampton City Council","http://opendatacommunities.org/id/metropolitan-district-council/wolverhampton","710828","Andrew Page","061473531","9.30","Equipment - Purchase","190488072","25/07/2018","Fleet Services","Fleet Management","R4000"
"Wolverhampton City Council","http://opendatacommunities.org/id/metropolitan-district-council/wolverhampton","710828","Andrew Page","061468677","7.10","Equipment - Purchase","190484315","13/07/2018","Fleet Services","Fleet Management","R4000"
"Wolverhampton City Council","http://opendatacommunities.org/id/metropolitan-district-council/wolverhampton","710828","Andrew Page","061469084","17.68","Equipment - Purchase","190481451","06/07/2018","Fleet Services","Fleet Management","R4000"
"Wolverhampton City Council","http://opendatacommunities.org/id/metropolitan-district-council/wolverhampton","710828","Andrew Page","061469084","42.00","Equipment - Purchase","190481451","06/07/2018","Fleet Services","Fleet Management","R4000"
"Wolverhampton City Council","http://opendatacommunities.org/id/metropolitan-district-council/wolverhampton","710828","Andrew Page","061469084","16.18","Equipment - Purchase","190481451","06/07/2018","Fleet Services","Fleet Management","R4000"
"Wolverhampton City Council","http://opendatacommunities.org/id/metropolitan-district-council/wolverhampton","710828","Andrew Page","061466712","6.34","Equipment - Purchase","190481446","06/07/2018","Fleet Services","Fleet Management","R4000"
"Wolverhampton City Council","http://opendatacommunities.org/id/metropolitan-district-council/wolverhampton","710828","Andrew Page","061466712","51.52","Equipment - Purchase","190481446","06/07/2018","Fleet Services","Fleet Management","R4000"
"Wolverhampton City Council","http://opendatacommunities.org/id/metropolitan-district-council/wolverhampton","710828","Andrew Page","061472506","14.05","Equipment - Purchase","190490180","27/07/2018","Fleet Services","Fleet Management","R4000"
"Wolverhampton City Council","http://opendatacommunities.org/id/metropolitan-district-council/wolverhampton","710828","Andrew Page","061473306","269.98","Equipment - Purchase","190490186","27/07/2018","Fleet Services","Fleet Management","R4000"
"Wolverhampton City Council","http://opendatacommunities.org/id/metropolitan-district-council/wolverhampton","710828","Andrew Page","061474504","29.99","Equipment - Purchase","190490188","27/07/2018","Fleet Services","Fleet Management","R4000"
"Wolverhampton City Council","http://opendatacommunities.org/id/metropolitan-district-council/wolverhampton","710828","Andrew Page","061469933","29.85","Equipment - Purchase","190486212","23/07/2018","Fleet Services","Fleet Management","R4000"
"Wolverhampton City Council","http://opendatacommunities.org/id/metropolitan-district-council/wolverhampton","710828","Andrew Page","061469933","5.07","Equipment - Purchase","190486212","23/07/2018","Fleet Services","Fleet Management","R4000"
"Wolverhampton City Council","http://opendatacommunities.org/id/metropolitan-district-council/wolverhampton","710828","Andrew Page","061469933","5.43","Equipment - Purchase","190486212","23/07/2018","Fleet Services","Fleet Management","R4000"
"Wolverhampton City Council","http://opendatacommunities.org/id/metropolitan-district-council/wolverhampton","710828","Andrew Page","061474480","22.83","Equipment - Purchase","190488075","25/07/2018","Fleet Services","Fleet Management","R4000"
"Wolverhampton City Council","http://opendatacommunities.org/id/metropolitan-district-council/wolverhampton","710828","Andrew Page","061469444","42.00","Equipment - Purchase","190488070","25/07/2018","Fleet Services","Fleet Management","R4000"
"Wolverhampton City Council","http://opendatacommunities.org/id/metropolitan-district-council/wolverhampton","710828","Andrew Page","061467967","14.00","Equipment - Purchase","190480826","04/07/2018","Fleet Services","Fleet Management","R4000"
"Wolverhampton City Council","http://opendatacommunities.org/id/metropolitan-district-council/wolverhampton","710828","Andrew Page","061467968","17.39","Equipment - Purchase","190480827","04/07/2018","Fleet Services","Fleet Management","R4000"
"Wolverhampton City Council","http://opendatacommunities.org/id/metropolitan-district-council/wolverhampton","710828","Andrew Page","061470996","14.00","Equipment - Purchase","190484316","13/07/2018","Fleet Services","Fleet Management","R4000"
"Wolverhampton City Council","http://opendatacommunities.org/id/metropolitan-district-council/wolverhampton","710828","Andrew Page","061472534","28.29","Equipment - Purchase","190490181","27/07/2018","Fleet Services","Fleet Management","R4000"
"Wolverhampton City Council","http://opendatacommunities.org/id/metropolitan-district-council/wolverhampton","710828","Andrew Page","061474941","6.88","Equipment - Purchase","190490189","27/07/2018","Fleet Services","Fleet Management","R4000"
"Wolverhampton City Council","http://opendatacommunities.org/id/metropolitan-district-council/wolverhampton","710828","Andrew Page","061475038","62.28","Equipment - Purchase","190490190","27/07/2018","Fleet Services","Fleet Management","R4000"
"Wolverhampton City Council","http://opendatacommunities.org/id/metropolitan-district-council/wolverhampton","710828","Andrew Page","061469282","22.53","Equipment - Purchase","190481453","06/07/2018","Fleet Services","Fleet Management","R4000"
"Wolverhampton City Council","http://opendatacommunities.org/id/metropolitan-district-council/wolverhampton","710828","Andrew Page","061469282","35.60","Equipment - Purchase","190481453","06/07/2018","Fleet Services","Fleet Management","R4000"
"Wolverhampton City Council","http://opendatacommunities.org/id/metropolitan-district-council/wolverhampton","710828","Andrew Page","061466657","6.34","Equipment - Purchase","190481445","06/07/2018","Fleet Services","Fleet Management","R4000"
"Wolverhampton City Council","http://opendatacommunities.org/id/metropolitan-district-council/wolverhampton","710828","Andrew Page","061466657","3.28","Equipment - Purchase","190481445","06/07/2018","Fleet Services","Fleet Management","R4000"
"Wolverhampton City Council","http://opendatacommunities.org/id/metropolitan-district-council/wolverhampton","710828","Andrew Page","061468634","21.89","Equipment - Purchase","190481450","06/07/2018","Fleet Services","Fleet Management","R4000"
"Wolverhampton City Council","http://opendatacommunities.org/id/metropolitan-district-council/wolverhampton","710828","Andrew Page","061468634","12.38","Equipment - Purchase","190481450","06/07/2018","Fleet Services","Fleet Management","R4000"
"Wolverhampton City Council","http://opendatacommunities.org/id/metropolitan-district-council/wolverhampton","710828","Andrew Page","061469997","5.07","Equipment - Purchase","190486213","23/07/2018","Fleet Services","Fleet Management","R4000"
"Wolverhampton City Council","http://opendatacommunities.org/id/metropolitan-district-council/wolverhampton","710828","Andrew Page","061469997","15.62","Equipment - Purchase","190486213","23/07/2018","Fleet Services","Fleet Management","R4000"
"Wolverhampton City Council","http://opendatacommunities.org/id/metropolitan-district-council/wolverhampton","710828","Andrew Page","061469997","29.17","Equipment - Purchase","190486213","23/07/2018","Fleet Services","Fleet Management","R4000"
"Wolverhampton City Council","http://opendatacommunities.org/id/metropolitan-district-council/wolverhampton","710828","Andrew Page","061469997","5.26","Equipment - Purchase","190486213","23/07/2018","Fleet Services","Fleet Management","R4000"
"Wolverhampton City Council","http://opendatacommunities.org/id/metropolitan-district-council/wolverhampton","710828","Andrew Page","061469840","44.99","Equipment - Purchase","190486211","23/07/2018","Fleet Services","Fleet Management","R4000"
"Wolverhampton City Council","http://opendatacommunities.org/id/metropolitan-district-council/wolverhampton","710828","Andrew Page","061467971","26.30","Equipment - Purchase","190480830","04/07/2018","Fleet Services","Fleet Management","R4000"
"Wolverhampton City Council","http://opendatacommunities.org/id/metropolitan-district-council/wolverhampton","710873","Little Rascals Childcare LTD","NEF Summer 2018 INST 2","13,555.80","TPP - Private Nursery Education Funding","190489824","25/07/2018","Early Years","Early Years Universal Entitlement for 3 and 4 Year Olds","R5035"
"Wolverhampton City Council","http://opendatacommunities.org/id/metropolitan-district-council/wolverhampton","710873","Little Rascals Childcare LTD","TFT Summer 2018 Inst 2","6,316.30","TPP - Private Nursery Education Funding","190489836","25/07/2018","Early Years","Early Years Entitlement Funding for Disadvantaged 2 Year Olds","R5035"
"Wolverhampton City Council","http://opendatacommunities.org/id/metropolitan-district-council/wolverhampton","710873","Little Rascals Childcare LTD","Enhanced Funding Summer 2018 H Morris Groom","1,000.00","TPP - Private Nursery Education Funding","190482543","11/07/2018","Early Years","Early Years SEN Inclusion Fund","R5035"
"Wolverhampton City Council","http://opendatacommunities.org/id/metropolitan-district-council/wolverhampton","710873","Little Rascals Childcare LTD","EYPP Summer 2018","1,431.00","TPP - Private Nursery Education Funding","190489844","25/07/2018","Early Years","Early Years Pupil Premium","R5035"
"Wolverhampton City Council","http://opendatacommunities.org/id/metropolitan-district-council/wolverhampton","710874","Kerry Felton","NEF Summer 2018 INST 2","612.00","TPP - Private Nursery Education Funding","190489824","25/07/2018","Early Years","Early Years Universal Entitlement for 3 and 4 Year Olds","R5035"
"Wolverhampton City Council","http://opendatacommunities.org/id/metropolitan-district-council/wolverhampton","710874","Kerry Felton","TFT Summer 2018 Inst 2","377.28","TPP - Private Nursery Education Funding","190489836","25/07/2018","Early Years","Early Years Entitlement Funding for Disadvantaged 2 Year Olds","R5035"
"Wolverhampton City Council","http://opendatacommunities.org/id/metropolitan-district-council/wolverhampton","710875","St Michaels Pre School","NEF Summer 2018 INST 2","10,010.93","TPP - Private Nursery Education Funding","190489824","25/07/2018","Early Years","Early Years Universal Entitlement for 3 and 4 Year Olds","R5035"
"Wolverhampton City Council","http://opendatacommunities.org/id/metropolitan-district-council/wolverhampton","710875","St Michaels Pre School","TFT Summer 2018 Inst 2","1,496.02","TPP - Private Nursery Education Funding","190489836","25/07/2018","Early Years","Early Years Entitlement Funding for Disadvantaged 2 Year Olds","R5035"
"Wolverhampton City Council","http://opendatacommunities.org/id/metropolitan-district-council/wolverhampton","710875","St Michaels Pre School","EYPP Summer 2018","572.40","TPP - Private Nursery Education Funding","190489844","25/07/2018","Early Years","Early Years Pupil Premium","R5035"
"Wolverhampton City Council","http://opendatacommunities.org/id/metropolitan-district-council/wolverhampton","710875","St Michaels Pre School","Enhanced Funding Summer 2018 T Brown","500.00","TPP - Private Nursery Education Funding","190482545","11/07/2018","Early Years","Early Years SEN Inclusion Fund","R5035"
"Wolverhampton City Council","http://opendatacommunities.org/id/metropolitan-district-council/wolverhampton","710878","247 Cars","1164","1,300.00","Client Transport","130223626","25/07/2018","Special Educational Needs","Special - Transport","R3042"
"Wolverhampton City Council","http://opendatacommunities.org/id/metropolitan-district-council/wolverhampton","710928","Yoo Recruit LTD","CWC102131189","28.04","Agency Staff","190477422","04/07/2018","Leisure Services","Central Baths","R1100"
"Wolverhampton City Council","http://opendatacommunities.org/id/metropolitan-district-council/wolverhampton","710928","Yoo Recruit LTD","CWC102134104","284.88","Agency Staff","190480337","04/07/2018","Headstart","Headstart Phase 3","R1100"
"Wolverhampton City Council","http://opendatacommunities.org/id/metropolitan-district-council/wolverhampton","710928","Yoo Recruit LTD","CWC102132901","-16.20","Agency Staff","190479134","04/07/2018","Public Protection","EHTS Staffing","R1100"
"Wolverhampton City Council","http://opendatacommunities.org/id/metropolitan-district-council/wolverhampton","710928","Yoo Recruit LTD","CWC102131206","63.70","Agency Staff","190477439","04/07/2018","Leisure Services","Central Baths","R1100"
"Wolverhampton City Council","http://opendatacommunities.org/id/metropolitan-district-council/wolverhampton","710928","Yoo Recruit LTD","CWC102131205","61.55","Agency Staff","190477438","04/07/2018","Leisure Services","Central Baths","R1100"
"Wolverhampton City Council","http://opendatacommunities.org/id/metropolitan-district-council/wolverhampton","710928","Yoo Recruit LTD","CWC102133314","474.75","Agency Staff","190479547","04/07/2018","School Planning & Resources","Technical Support","R1100"
"Wolverhampton City Council","http://opendatacommunities.org/id/metropolitan-district-council/wolverhampton","710928","Yoo Recruit LTD","CWC102133318","474.75","Agency Staff","190479551","04/07/2018","School Planning & Resources","Technical Support","R1100"
"Wolverhampton City Council","http://opendatacommunities.org/id/metropolitan-district-council/wolverhampton","710928","Yoo Recruit LTD","CWC102133213","-21.09","Agency Staff","190479446","04/07/2018","Special Educational Needs","Special - Transport","R1100"
"Wolverhampton City Council","http://opendatacommunities.org/id/metropolitan-district-council/wolverhampton","710928","Yoo Recruit LTD","CWC102132398","36.63","Agency Staff","190478631","04/07/2018","Cleaning","External Cleaning","R1100"
"Wolverhampton City Council","http://opendatacommunities.org/id/metropolitan-district-council/wolverhampton","710928","Yoo Recruit LTD","CWC102132402","86.24","Agency Staff","190478635","04/07/2018","Cleaning","External Cleaning","R1100"
"Wolverhampton City Council","http://opendatacommunities.org/id/metropolitan-district-council/wolverhampton","710928","Yoo Recruit LTD","CWC102132629","226.94","Agency Staff","190478862","04/07/2018","Markets","Bilston Market and Licensed Operations","R1100"
"Wolverhampton City Council","http://opendatacommunities.org/id/metropolitan-district-council/wolverhampton","710928","Yoo Recruit LTD","CWC10213941","99.98","Agency Staff","190477174","04/07/2018","Leisure Services","Bert Williams Leisure Centre","R1100"
"Wolverhampton City Council","http://opendatacommunities.org/id/metropolitan-district-council/wolverhampton","710928","Yoo Recruit LTD","CWC102131418","48.84","Agency Staff","190477651","04/07/2018","Catering","Education Catering - General Overheads","R1100"
"Wolverhampton City Council","http://opendatacommunities.org/id/metropolitan-district-council/wolverhampton","710928","Yoo Recruit LTD","CWC102134245","476.45","Agency Staff","190480478","04/07/2018","Safeguarding","Safeguarding Partnership Board","R1100"
"Wolverhampton City Council","http://opendatacommunities.org/id/metropolitan-district-council/wolverhampton","710928","Yoo Recruit LTD","CWC102133322","474.75","Agency Staff","190479555","04/07/2018","School Planning & Resources","Technical Support","R1100"
"Wolverhampton City Council","http://opendatacommunities.org/id/metropolitan-district-council/wolverhampton","710928","Yoo Recruit LTD","CWC102132031","645.60","Agency Staff","190478264","04/07/2018","Customer Services","City Direct","R1100"
"Wolverhampton City Council","http://opendatacommunities.org/id/metropolitan-district-council/wolverhampton","710928","Yoo Recruit LTD","CWC10213745","282.83","Agency Staff","190476978","04/07/2018","Leisure Services","Aldersley Leisure Village","R1100"
"Wolverhampton City Council","http://opendatacommunities.org/id/metropolitan-district-council/wolverhampton","710928","Yoo Recruit LTD","CWC102133668","28.13","Agency Staff","190479901","04/07/2018","Leisure Services","WV Active Business Support","R1100"
"Wolverhampton City Council","http://opendatacommunities.org/id/metropolitan-district-council/wolverhampton","710928","Yoo Recruit LTD","CWC102134580","378.51","Agency Staff","190480813","04/07/2018","Visitor Economy","VEC - Casual & Agency Staff","R1100"
"Wolverhampton City Council","http://opendatacommunities.org/id/metropolitan-district-council/wolverhampton","710928","Yoo Recruit LTD","CWC102134581","383.16","Agency Staff","190480814","04/07/2018","Visitor Economy","VEC - Casual & Agency Staff","R1100"
"Wolverhampton City Council","http://opendatacommunities.org/id/metropolitan-district-council/wolverhampton","710928","Yoo Recruit LTD","CWC10213219","625.63","Agency Staff","190476452","04/07/2018","Learning Disability Provider","Duke Street Bungalows","R1100"
"Wolverhampton City Council","http://opendatacommunities.org/id/metropolitan-district-council/wolverhampton","710928","Yoo Recruit LTD","CWC10213902","61.55","Agency Staff","190477135","04/07/2018","Leisure Services","Bert Williams Leisure Centre","R1100"
"Wolverhampton City Council","http://opendatacommunities.org/id/metropolitan-district-council/wolverhampton","710928","Yoo Recruit LTD","CWC10213711","49.24","Agency Staff","190476944","04/07/2018","Leisure Services","Aldersley Leisure Village","R1100"
"Wolverhampton City Council","http://opendatacommunities.org/id/metropolitan-district-council/wolverhampton","710928","Yoo Recruit LTD","CWC102134466","85.47","Agency Staff","190480699","04/07/2018","Visitor Economy","VEC - Casual & Agency Staff","R1100"
"Wolverhampton City Council","http://opendatacommunities.org/id/metropolitan-district-council/wolverhampton","710928","Yoo Recruit LTD","CWC102132757","475.45","Agency Staff","190478990","04/07/2018","Human Resources","HR Advice","R1100"
"Wolverhampton City Council","http://opendatacommunities.org/id/metropolitan-district-council/wolverhampton","710928","Yoo Recruit LTD","CWC10213910","61.55","Agency Staff","190477143","04/07/2018","Leisure Services","Bert Williams Leisure Centre","R1100"
"Wolverhampton City Council","http://opendatacommunities.org/id/metropolitan-district-council/wolverhampton","710928","Yoo Recruit LTD","CWC102133053","374.18","Agency Staff","190479286","04/07/2018","Adult Education","Language Studies Delivery Area","R1100"
"Wolverhampton City Council","http://opendatacommunities.org/id/metropolitan-district-council/wolverhampton","710928","Yoo Recruit LTD","CWC102133056","473.96","Agency Staff","190479289","04/07/2018","Adult Education","Language Studies Delivery Area","R1100"
"Wolverhampton City Council","http://opendatacommunities.org/id/metropolitan-district-council/wolverhampton","710928","Yoo Recruit LTD","CWC102132315","183.15","Agency Staff","190478548","04/07/2018","Cleaning","Cleaning of Buildings - General","R1100"
"Wolverhampton City Council","http://opendatacommunities.org/id/metropolitan-district-council/wolverhampton","710928","Yoo Recruit LTD","CWC102131428","122.10","Agency Staff","190477661","04/07/2018","Catering","Education Catering - General Overheads","R1100"
"Wolverhampton City Council","http://opendatacommunities.org/id/metropolitan-district-council/wolverhampton","710928","Yoo Recruit LTD","CWC102131524","100.73","Agency Staff","190477757","04/07/2018","Catering","Primary Schools Catering","R1100"
"Wolverhampton City Council","http://opendatacommunities.org/id/metropolitan-district-council/wolverhampton","710928","Yoo Recruit LTD","CWC102133120","12.15","Agency Staff","190479353","04/07/2018","School Planning & Resources","Music Support Team","R1100"
"Wolverhampton City Council","http://opendatacommunities.org/id/metropolitan-district-council/wolverhampton","710928","Yoo Recruit LTD","CWC102133121","62.19","Agency Staff","190479354","04/07/2018","School Planning & Resources","Music Support Team","R1100"
"Wolverhampton City Council","http://opendatacommunities.org/id/metropolitan-district-council/wolverhampton","710928","Yoo Recruit LTD","CWC102132329","183.30","Agency Staff","190478562","04/07/2018","Cleaning","Cleaning of Buildings - General","R1100"
"Wolverhampton City Council","http://opendatacommunities.org/id/metropolitan-district-council/wolverhampton","710928","Yoo Recruit LTD","CWC102132590","48.84","Agency Staff","190478823","04/07/2018","Transportation","Passenger Transport - General","R1100"
"Wolverhampton City Council","http://opendatacommunities.org/id/metropolitan-district-council/wolverhampton","710928","Yoo Recruit LTD","CWC102132594","48.84","Agency Staff","190478827","04/07/2018","Transportation","Passenger Transport - General","R1100"
"Wolverhampton City Council","http://opendatacommunities.org/id/metropolitan-district-council/wolverhampton","710928","Yoo Recruit LTD","CWC102131529","122.10","Agency Staff","190477762","04/07/2018","Catering","Primary Schools Catering","R1100"
"Wolverhampton City Council","http://opendatacommunities.org/id/metropolitan-district-council/wolverhampton","710928","Yoo Recruit LTD","CWC102131961","472.51","Agency Staff","190478194","04/07/2018","Customer Services","City Direct","R1100"
"Wolverhampton City Council","http://opendatacommunities.org/id/metropolitan-district-council/wolverhampton","710928","Yoo Recruit LTD","CWC102131963","475.30","Agency Staff","190478196","04/07/2018","Customer Services","City Direct","R1100"
"Wolverhampton City Council","http://opendatacommunities.org/id/metropolitan-district-council/wolverhampton","710928","Yoo Recruit LTD","CWC102134416","49.84","Agency Staff","190480649","04/07/2018","Visitor Economy","VEC - Casual & Agency Staff","R1100"
"Wolverhampton City Council","http://opendatacommunities.org/id/metropolitan-district-council/wolverhampton","710928","Yoo Recruit LTD","CWC102134420","49.84","Agency Staff","190480653","04/07/2018","Visitor Economy","VEC - Casual & Agency Staff","R1100"
"Wolverhampton City Council","http://opendatacommunities.org/id/metropolitan-district-council/wolverhampton","710928","Yoo Recruit LTD","CWC102133805","223.12","Agency Staff","190480038","04/07/2018","Leisure Services","WV Active Business Support","R1100"
"Wolverhampton City Council","http://opendatacommunities.org/id/metropolitan-district-council/wolverhampton","710928","Yoo Recruit LTD","CWC102133723","84.39","Agency Staff","190479956","04/07/2018","Leisure Services","WV Active Business Support","R1100"
"Wolverhampton City Council","http://opendatacommunities.org/id/metropolitan-district-council/wolverhampton","710928","Yoo Recruit LTD","CWC102132024","615.67","Agency Staff","190478257","04/07/2018","Customer Services","City Direct","R1100"
"Wolverhampton City Council","http://opendatacommunities.org/id/metropolitan-district-council/wolverhampton","710928","Yoo Recruit LTD","CWC102133806","225.04","Agency Staff","190480039","04/07/2018","Leisure Services","WV Active Business Support","R1100"
"Wolverhampton City Council","http://opendatacommunities.org/id/metropolitan-district-council/wolverhampton","710928","Yoo Recruit LTD","CWC102133710","82.62","Agency Staff","190479943","04/07/2018","Leisure Services","WV Active Business Support","R1100"
"Wolverhampton City Council","http://opendatacommunities.org/id/metropolitan-district-council/wolverhampton","710928","Yoo Recruit LTD","CWC102134229","384.69","Agency Staff","190480462","04/07/2018","Leisure Services","WV Active Catering - Central","R1100"
"Wolverhampton City Council","http://opendatacommunities.org/id/metropolitan-district-council/wolverhampton","710928","Yoo Recruit LTD","CWC102132333","183.30","Agency Staff","190478566","04/07/2018","Cleaning","Cleaning of Buildings - General","R1100"
"Wolverhampton City Council","http://opendatacommunities.org/id/metropolitan-district-council/wolverhampton","710928","Yoo Recruit LTD","CWC102131424","122.10","Agency Staff","190477657","04/07/2018","Catering","Education Catering - General Overheads","R1100"
"Wolverhampton City Council","http://opendatacommunities.org/id/metropolitan-district-council/wolverhampton","710928","Yoo Recruit LTD","CWC102132","1,214.71","Agency Staff","190476235","04/07/2018","Service Director Children & Young People","Director Children & Young People","R1100"
"Wolverhampton City Council","http://opendatacommunities.org/id/metropolitan-district-council/wolverhampton","710928","Yoo Recruit LTD","CWC102133725","85.44","Agency Staff","190479958","04/07/2018","Leisure Services","WV Active Business Support","R1100"
"Wolverhampton City Council","http://opendatacommunities.org/id/metropolitan-district-council/wolverhampton","710928","Yoo Recruit LTD","CWC102131296","227.74","Agency Staff","190477529","04/07/2018","Leisure Services","Central Baths","R1100"
"Wolverhampton City Council","http://opendatacommunities.org/id/metropolitan-district-council/wolverhampton","710928","Yoo Recruit LTD","CWC102131537","122.10","Agency Staff","190477770","04/07/2018","Catering","Primary Schools Catering","R1100"
"Wolverhampton City Council","http://opendatacommunities.org/id/metropolitan-district-council/wolverhampton","710928","Yoo Recruit LTD","CWC102131311","283.13","Agency Staff","190477544","04/07/2018","Leisure Services","Central Baths","R1100"
"Wolverhampton City Council","http://opendatacommunities.org/id/metropolitan-district-council/wolverhampton","710928","Yoo Recruit LTD","CWC102133719","84.39","Agency Staff","190479952","04/07/2018","Leisure Services","WV Active Business Support","R1100"
"Wolverhampton City Council","http://opendatacommunities.org/id/metropolitan-district-council/wolverhampton","710928","Yoo Recruit LTD","CWC102131203","61.55","Agency Staff","190477436","04/07/2018","Leisure Services","Central Baths","R1100"
"Wolverhampton City Council","http://opendatacommunities.org/id/metropolitan-district-council/wolverhampton","710928","Yoo Recruit LTD","CWC102132337","183.30","Agency Staff","190478570","04/07/2018","Cleaning","Cleaning of Buildings - General","R1100"
"Wolverhampton City Council","http://opendatacommunities.org/id/metropolitan-district-council/wolverhampton","710928","Yoo Recruit LTD","CWC102131230","99.98","Agency Staff","190477463","04/07/2018","Leisure Services","Central Baths","R1100"
"Wolverhampton City Council","http://opendatacommunities.org/id/metropolitan-district-council/wolverhampton","710928","Yoo Recruit LTD","CWC10213401","61.80","Agency Staff","190476634","04/07/2018","Local Economy","Global Budgets","R1100"
"Wolverhampton City Council","http://opendatacommunities.org/id/metropolitan-district-council/wolverhampton","710928","Yoo Recruit LTD","CWC102133081","29.08","Agency Staff","190479314","04/07/2018","Adult Education","Learner Services","R1100"
"Wolverhampton City Council","http://opendatacommunities.org/id/metropolitan-district-council/wolverhampton","710928","Yoo Recruit LTD","CWC102132028","632.70","Agency Staff","190478261","04/07/2018","Customer Services","City Direct","R1100"
"Wolverhampton City Council","http://opendatacommunities.org/id/metropolitan-district-council/wolverhampton","710928","Yoo Recruit LTD","CWC102133715","84.39","Agency Staff","190479948","04/07/2018","Leisure Services","WV Active Business Support","R1100"
"Wolverhampton City Council","http://opendatacommunities.org/id/metropolitan-district-council/wolverhampton","710928","Yoo Recruit LTD","CWC102133824","281.30","Agency Staff","190480057","04/07/2018","Leisure Services","WV Active Business Support","R1100"
"Wolverhampton City Council","http://opendatacommunities.org/id/metropolitan-district-council/wolverhampton","710928","Yoo Recruit LTD","CWC102131533","122.10","Agency Staff","190477766","04/07/2018","Catering","Primary Schools Catering","R1100"
"Wolverhampton City Council","http://opendatacommunities.org/id/metropolitan-district-council/wolverhampton","710928","Yoo Recruit LTD","CWC102133439","476.16","Agency Staff","190479672","04/07/2018","Governance Services","Business Support - Governance","R1100"
"Wolverhampton City Council","http://opendatacommunities.org/id/metropolitan-district-council/wolverhampton","710928","Yoo Recruit LTD","CWC102132026","626.10","Agency Staff","190478259","04/07/2018","Customer Services","City Direct","R1100"
"Wolverhampton City Council","http://opendatacommunities.org/id/metropolitan-district-council/wolverhampton","710928","Yoo Recruit LTD","CWC102131255","147.84","Agency Staff","190477488","04/07/2018","Leisure Services","Central Baths","R1100"
"Wolverhampton City Council","http://opendatacommunities.org/id/metropolitan-district-council/wolverhampton","710928","Yoo Recruit LTD","CWC102133686","47.88","Agency Staff","190479919","04/07/2018","Leisure Services","WV Active Business Support","R1100"
"Wolverhampton City Council","http://opendatacommunities.org/id/metropolitan-district-council/wolverhampton","710928","Yoo Recruit LTD","CWC10213393","61.80","Agency Staff","190476626","04/07/2018","Local Economy","Global Budgets","R1100"
"Wolverhampton City Council","http://opendatacommunities.org/id/metropolitan-district-council/wolverhampton","710928","Yoo Recruit LTD","CWC1021376","648.00","Agency Staff","190476309","04/07/2018","Looked After Children","LAC Education Team (LACE)","R1100"
"Wolverhampton City Council","http://opendatacommunities.org/id/metropolitan-district-council/wolverhampton","710928","Yoo Recruit LTD","CWC102132726","281.98","Agency Staff","190478959","04/07/2018","Parking Services","Shopmobility","R1100"
"Wolverhampton City Council","http://opendatacommunities.org/id/metropolitan-district-council/wolverhampton","710928","Yoo Recruit LTD","CWC102132311","183.15","Agency Staff","190478544","04/07/2018","Cleaning","Cleaning of Buildings - General","R1100"
"Wolverhampton City Council","http://opendatacommunities.org/id/metropolitan-district-council/wolverhampton","710928","Yoo Recruit LTD","CWC102132910","16.20","Agency Staff","190479143","04/07/2018","Public Protection","EHTS Staffing","R1100"
"Wolverhampton City Council","http://opendatacommunities.org/id/metropolitan-district-council/wolverhampton","710928","Yoo Recruit LTD","CWC10213397","61.80","Agency Staff","190476630","04/07/2018","Local Economy","Global Budgets","R1100"
"Wolverhampton City Council","http://opendatacommunities.org/id/metropolitan-district-council/wolverhampton","710928","Yoo Recruit LTD","CWC10213906","61.55","Agency Staff","190477139","04/07/2018","Leisure Services","Bert Williams Leisure Centre","R1100"
"Wolverhampton City Council","http://opendatacommunities.org/id/metropolitan-district-council/wolverhampton","710928","Yoo Recruit LTD","CWC102133820","281.30","Agency Staff","190480053","04/07/2018","Leisure Services","WV Active Business Support","R1100"
"Wolverhampton City Council","http://opendatacommunities.org/id/metropolitan-district-council/wolverhampton","710928","Yoo Recruit LTD","CWC102132253","122.20","Agency Staff","190478486","04/07/2018","Cleaning","Cleaning of Buildings - General","R1100"
"Wolverhampton City Council","http://opendatacommunities.org/id/metropolitan-district-council/wolverhampton","710928","Yoo Recruit LTD","CWC10213516","11.94","Agency Staff","190476749","04/07/2018","Adults Assessment & Care Management West","Hospital Team","R1100"
"Wolverhampton City Council","http://opendatacommunities.org/id/metropolitan-district-council/wolverhampton","710928","Yoo Recruit LTD","CWC102133954","12.60","Agency Staff","190480187","04/07/2018","Child Protection","CIN/CP Social Work Unit - Area 3","R1100"
"Wolverhampton City Council","http://opendatacommunities.org/id/metropolitan-district-council/wolverhampton","710928","Yoo Recruit LTD","CWC102134502","148.32","Agency Staff","190480735","04/07/2018","Visitor Economy","VEC - Casual & Agency Staff","R1100"
"Wolverhampton City Council","http://opendatacommunities.org/id/metropolitan-district-council/wolverhampton","710928","Yoo Recruit LTD","CWC102133466","481.80","Agency Staff","190479699","04/07/2018","Public Service Reform","Management Trainee Programme","R1100"
"Wolverhampton City Council","http://opendatacommunities.org/id/metropolitan-district-council/wolverhampton","710928","Yoo Recruit LTD","CWC102132307","183.15","Agency Staff","190478540","04/07/2018","Cleaning","Cleaning of Buildings - General","R1100"
"Wolverhampton City Council","http://opendatacommunities.org/id/metropolitan-district-council/wolverhampton","710928","Yoo Recruit LTD","CWC102132339","183.30","Agency Staff","190478572","04/07/2018","Cleaning","Cleaning of Buildings - General","R1100"
"Wolverhampton City Council","http://opendatacommunities.org/id/metropolitan-district-council/wolverhampton","710928","Yoo Recruit LTD","CWC10213449","284.28","Agency Staff","190476682","04/07/2018","Local Economy","Global Budgets","R1100"
"Wolverhampton City Council","http://opendatacommunities.org/id/metropolitan-district-council/wolverhampton","710928","Yoo Recruit LTD","CWC102131234","99.98","Agency Staff","190477467","04/07/2018","Leisure Services","Central Baths","R1100"
"Wolverhampton City Council","http://opendatacommunities.org/id/metropolitan-district-council/wolverhampton","710928","Yoo Recruit LTD","CWC102132699","147.12","Agency Staff","190478932","04/07/2018","Parking Services","Shopmobility","R1100"
"Wolverhampton City Council","http://opendatacommunities.org/id/metropolitan-district-council/wolverhampton","710928","Yoo Recruit LTD","CWC102134541","222.48","Agency Staff","190480774","04/07/2018","Visitor Economy","VEC - Casual & Agency Staff","R1100"
"Wolverhampton City Council","http://opendatacommunities.org/id/metropolitan-district-council/wolverhampton","710928","Yoo Recruit LTD","CWC102133901","1,190.53","Agency Staff","190480134","04/07/2018","Human Resources","HR Investigations","R1100"
"Wolverhampton City Council","http://opendatacommunities.org/id/metropolitan-district-council/wolverhampton","710928","Yoo Recruit LTD","CWC102133022","-159.60","Agency Staff","190479255","04/07/2018","Adult Education","Creative Studies Delivery Area","R1100"
"Wolverhampton City Council","http://opendatacommunities.org/id/metropolitan-district-council/wolverhampton","710928","Yoo Recruit LTD","CWC10213134","-155.32","Agency Staff","190476367","04/07/2018","Learning Disability Provider","Duke Street Bungalows","R1100"
"Wolverhampton City Council","http://opendatacommunities.org/id/metropolitan-district-council/wolverhampton","710928","Yoo Recruit LTD","CWC10213643","-155.66","Agency Staff","190476876","04/07/2018","Leisure Services","Aldersley Leisure Village","R1100"
"Wolverhampton City Council","http://opendatacommunities.org/id/metropolitan-district-council/wolverhampton","710928","Yoo Recruit LTD","CWC102133574","-106.48","Agency Staff","190479807","04/07/2018","Leisure Services","WV Active Business Support","R1100"
"Wolverhampton City Council","http://opendatacommunities.org/id/metropolitan-district-council/wolverhampton","710928","Yoo Recruit LTD","CWC102132967","-105.57","Agency Staff","190479200","04/07/2018","Adult Education","Caretakers","R1100"
"Wolverhampton City Council","http://opendatacommunities.org/id/metropolitan-district-council/wolverhampton","710928","Yoo Recruit LTD","CWC102131118","-159.00","Agency Staff","190477351","04/07/2018","Leisure Services","Central Baths","R1100"
"Wolverhampton City Council","http://opendatacommunities.org/id/metropolitan-district-council/wolverhampton","710928","Yoo Recruit LTD","CWC10213798","-152.64","Agency Staff","190477031","04/07/2018","Leisure Services","Bert Williams Leisure Centre","R1100"
"Wolverhampton City Council","http://opendatacommunities.org/id/metropolitan-district-council/wolverhampton","710928","Yoo Recruit LTD","CWC102133535","-153.72","Agency Staff","190479768","04/07/2018","Leisure Services","WV Active Business Support","R1100"
"Wolverhampton City Council","http://opendatacommunities.org/id/metropolitan-district-council/wolverhampton","710928","Yoo Recruit LTD","CWC102133566","-107.88","Agency Staff","190479799","04/07/2018","Leisure Services","WV Active Business Support","R1100"
"Wolverhampton City Council","http://opendatacommunities.org/id/metropolitan-district-council/wolverhampton","710928","Yoo Recruit LTD","CWC102132623","-157.90","Agency Staff","190478856","04/07/2018","Markets","Bilston Market and Licensed Operations","R1100"
"Wolverhampton City Council","http://opendatacommunities.org/id/metropolitan-district-council/wolverhampton","710928","Yoo Recruit LTD","CWC102134309","-157.01","Agency Staff","190480542","04/07/2018","Visitor Economy","VEC - Casual & Agency Staff","R1100"
"Wolverhampton City Council","http://opendatacommunities.org/id/metropolitan-district-council/wolverhampton","710928","Yoo Recruit LTD","CWC102133570","-107.88","Agency Staff","190479803","04/07/2018","Leisure Services","WV Active Business Support","R1100"
"Wolverhampton City Council","http://opendatacommunities.org/id/metropolitan-district-council/wolverhampton","710928","Yoo Recruit LTD","CWC10213796","-156.84","Agency Staff","190477029","04/07/2018","Leisure Services","Bert Williams Leisure Centre","R1100"
"Wolverhampton City Council","http://opendatacommunities.org/id/metropolitan-district-council/wolverhampton","710928","Yoo Recruit LTD","CWC10213463","-107.82","Agency Staff","190476696","04/07/2018","Local Economy","Adult Lending Library","R1100"
"Wolverhampton City Council","http://opendatacommunities.org/id/metropolitan-district-council/wolverhampton","710928","Yoo Recruit LTD","CWC102133018","-159.60","Agency Staff","190479251","04/07/2018","Adult Education","Creative Studies Delivery Area","R1100"
"Wolverhampton City Council","http://opendatacommunities.org/id/metropolitan-district-council/wolverhampton","710928","Yoo Recruit LTD","CWC10213813","-104.85","Agency Staff","190477046","04/07/2018","Leisure Services","Bert Williams Leisure Centre","R1100"
"Wolverhampton City Council","http://opendatacommunities.org/id/metropolitan-district-council/wolverhampton","710928","Yoo Recruit LTD","CWC10213154","-79.65","Agency Staff","190476387","04/07/2018","Learning Disability Provider","Duke Street Bungalows","R1100"
"Wolverhampton City Council","http://opendatacommunities.org/id/metropolitan-district-council/wolverhampton","710928","Yoo Recruit LTD","CWC102131944","393.24","Agency Staff","190478177","04/07/2018","Customer Services","City Direct","R1100"
"Wolverhampton City Council","http://opendatacommunities.org/id/metropolitan-district-council/wolverhampton","710928","Yoo Recruit LTD","CWC102134007","-36.58","Agency Staff","190480240","04/07/2018","Early Intervention","EIP Locality 2 � Bilston/Rocket Pool","R1100"
"Wolverhampton City Council","http://opendatacommunities.org/id/metropolitan-district-council/wolverhampton","710928","Yoo Recruit LTD","CWC102131024","406.57","Agency Staff","190477257","04/07/2018","Leisure Services","Bert Williams Leisure Centre","R1100"
"Wolverhampton City Council","http://opendatacommunities.org/id/metropolitan-district-council/wolverhampton","710928","Yoo Recruit LTD","CWC102132572","-74.10","Agency Staff","190478805","04/07/2018","Transportation","Passenger Transport - General","R1100"
"Wolverhampton City Council","http://opendatacommunities.org/id/metropolitan-district-council/wolverhampton","710928","Yoo Recruit LTD","CWC10213243","-147.35","Agency Staff","190476476","04/07/2018","Learning Disability Provider","Ernest Bold Court","R1100"
"Wolverhampton City Council","http://opendatacommunities.org/id/metropolitan-district-council/wolverhampton","710928","Yoo Recruit LTD","CWC102132037","772.19","Agency Staff","190478270","04/07/2018","Customer Services","City Direct","R1100"
"Wolverhampton City Council","http://opendatacommunities.org/id/metropolitan-district-council/wolverhampton","710928","Yoo Recruit LTD","CWC102132036","770.96","Agency Staff","190478269","04/07/2018","Customer Services","City Direct","R1100"
"Wolverhampton City Council","http://opendatacommunities.org/id/metropolitan-district-council/wolverhampton","710928","Yoo Recruit LTD","CWC102133592","-80.91","Agency Staff","190479825","04/07/2018","Leisure Services","WV Active Business Support","R1100"
"Wolverhampton City Council","http://opendatacommunities.org/id/metropolitan-district-council/wolverhampton","710928","Yoo Recruit LTD","CWC102131583","-114.30","Agency Staff","190477816","04/07/2018","Catering","Other Catering - General Overheads","R1100"
"Wolverhampton City Council","http://opendatacommunities.org/id/metropolitan-district-council/wolverhampton","710928","Yoo Recruit LTD","CWC102133976","-38.03","Agency Staff","190480209","04/07/2018","Early Intervention","EIP Locality 1 - Eastfields","R1100"
"Wolverhampton City Council","http://opendatacommunities.org/id/metropolitan-district-council/wolverhampton","710928","Yoo Recruit LTD","CWC102131595","-114.30","Agency Staff","190477828","04/07/2018","Catering","Other Catering - General Overheads","R1100"
"Wolverhampton City Council","http://opendatacommunities.org/id/metropolitan-district-council/wolverhampton","710928","Yoo Recruit LTD","CWC102134374","-73.32","Agency Staff","190480607","04/07/2018","Visitor Economy","VEC - Casual & Agency Staff","R1100"
"Wolverhampton City Council","http://opendatacommunities.org/id/metropolitan-district-council/wolverhampton","710928","Yoo Recruit LTD","CWC102132612","244.20","Agency Staff","190478845","04/07/2018","Transportation","Passenger Transport - General","R1100"
"Wolverhampton City Council","http://opendatacommunities.org/id/metropolitan-district-council/wolverhampton","710928","Yoo Recruit LTD","CWC102134003","-36.58","Agency Staff","190480236","04/07/2018","Early Intervention","EIP Locality 2 � Bilston/Rocket Pool","R1100"
"Wolverhampton City Council","http://opendatacommunities.org/id/metropolitan-district-council/wolverhampton","710928","Yoo Recruit LTD","CWC102131599","-114.00","Agency Staff","190477832","04/07/2018","Catering","Other Catering - General Overheads","R1100"
"Wolverhampton City Council","http://opendatacommunities.org/id/metropolitan-district-council/wolverhampton","710928","Yoo Recruit LTD","CWC102131441","-114.00","Agency Staff","190477674","04/07/2018","Catering","Primary Schools Catering","R1100"
"Wolverhampton City Council","http://opendatacommunities.org/id/metropolitan-district-council/wolverhampton","710928","Yoo Recruit LTD","CWC102133844","508.01","Agency Staff","190480077","04/07/2018","Leisure Services","WV Active Business Support","R1100"
"Wolverhampton City Council","http://opendatacommunities.org/id/metropolitan-district-council/wolverhampton","710928","Yoo Recruit LTD","CWC102134378","-73.32","Agency Staff","190480611","04/07/2018","Visitor Economy","VEC - Casual & Agency Staff","R1100"
"Wolverhampton City Council","http://opendatacommunities.org/id/metropolitan-district-council/wolverhampton","710928","Yoo Recruit LTD","CWC102133840","508.01","Agency Staff","190480073","04/07/2018","Leisure Services","WV Active Business Support","R1100"
"Wolverhampton City Council","http://opendatacommunities.org/id/metropolitan-district-council/wolverhampton","710928","Yoo Recruit LTD","CWC102134321","-146.64","Agency Staff","190480554","04/07/2018","Visitor Economy","VEC - Casual & Agency Staff","R1100"
"Wolverhampton City Council","http://opendatacommunities.org/id/metropolitan-district-council/wolverhampton","710928","Yoo Recruit LTD","CWC10213801","-145.59","Agency Staff","190477034","04/07/2018","Leisure Services","Bert Williams Leisure Centre","R1100"
"Wolverhampton City Council","http://opendatacommunities.org/id/metropolitan-district-council/wolverhampton","710928","Yoo Recruit LTD","CWC102134363","-79.80","Agency Staff","190480596","04/07/2018","Visitor Economy","VEC - Casual & Agency Staff","R1100"
"Wolverhampton City Council","http://opendatacommunities.org/id/metropolitan-district-council/wolverhampton","710928","Yoo Recruit LTD","CWC10213665","-71.46","Agency Staff","190476898","04/07/2018","Leisure Services","Aldersley Leisure Village","R1100"
"Wolverhampton City Council","http://opendatacommunities.org/id/metropolitan-district-council/wolverhampton","710928","Yoo Recruit LTD","CWC102131461","-114.00","Agency Staff","190477694","04/07/2018","Catering","Primary Schools Catering","R1100"
"Wolverhampton City Council","http://opendatacommunities.org/id/metropolitan-district-council/wolverhampton","710928","Yoo Recruit LTD","CWC102131453","-114.00","Agency Staff","190477686","04/07/2018","Catering","Primary Schools Catering","R1100"
"Wolverhampton City Council","http://opendatacommunities.org/id/metropolitan-district-council/wolverhampton","710928","Yoo Recruit LTD","CWC102131457","-114.00","Agency Staff","190477690","04/07/2018","Catering","Primary Schools Catering","R1100"
"Wolverhampton City Council","http://opendatacommunities.org/id/metropolitan-district-council/wolverhampton","710928","Yoo Recruit LTD","CWC102131155","-72.69","Agency Staff","190477388","04/07/2018","Leisure Services","Central Baths","R1100"
"Wolverhampton City Council","http://opendatacommunities.org/id/metropolitan-district-council/wolverhampton","710928","Yoo Recruit LTD","CWC10213853","-75.60","Agency Staff","190477086","04/07/2018","Leisure Services","Bert Williams Leisure Centre","R1100"
"Wolverhampton City Council","http://opendatacommunities.org/id/metropolitan-district-council/wolverhampton","710928","Yoo Recruit LTD","CWC102133583","-81.60","Agency Staff","190479816","04/07/2018","Leisure Services","WV Active Business Support","R1100"
